Workbook

Sheet Verktøy
C2: Oransje felt fylles ut av saksbehandler | E2: HUSK Å FYLLE UT DE ORANSJE FELTENE
C3: Grønne felt beregnes automatisk
B5: Kundeinformasjon | F5: Tiltak 1 | I5: Etterisolering vegg
B6: Navn | E6: Utføres på | G6: 100 | I6: Yttervegg isoleres så den tilsvarer energitiltakskravet for vegg i TEK17, dvs. at den
B7: Adresse | E7: % av fasaden. | I7: oppnår en U-verdi på ≤ 0,18 W/(m²K). Angi %-andel av fasaden som etterisoleres.
I8: Gir ikke besparelse for boliger som er bygd etter 2008.
F10: Tiltak 2 | I10: Etterisolering tak
B11: Prosjektinformasjon | E11: Utføres på | G11: 100 | I11: Tak isoleres så det tilsvarer energitiltakskravet for tak i TEK17, dvs. en U-verdi på
B12: Bygningstype | C12: Rekkehus, enebolig, to- eller firemannsbolig | E12: % av taket. | I12: ≤ 0,13 W/(m²K). Gir ikke besparelse for boliger som er bygd etter 1998.
B13: Byggeår/Rehabår
B14: Kommune | C14: Alstahaug | F14: Tiltak 3 | I14: Etterisolering gulv
B15: Bruksareal [m2] | E15: Utføres på | G15: 100 | I15: Gulv isoleres så det tilsvarer energitiltakskravet for gulv i TEK17, dvs. en U-verdi på
E16: % av gulvet. | I16: ≤ 0,10 W/(m²K).
B17: Krav besparelse i % | C17: 30
B18: Oppnådd besparelse i % | C18: =IF(C12="Rekkehus, enebolig, to- eller firemannsbolig",Beregninger!H12,Beregninger!H22) -> 40.98144343 | F18: Tiltak 4 | I18: Skifte vinduer og dører
E19: Utføres på | G19: 100 | I19: Vinduer og dører erstattes. U-verdi på de nye skal være ≤ 0,80 W/(m²K). Angi
B20: Oppnår energimerke D | C20: =IF(C15="","Bruksareal mangler",IF(C12="Leilighet",'Energimerke D'!G25,'Energimerke D'!G24)) -> Bruksareal mangler | E20: vinduer/dører. | I20: %-andel som byttes ut.
B22: =IF(C15="","Bruksareal mangler",IF(AND(C18>=C17,C20="Ja"),"Godkjent","Ikke godkjent")) -> Bruksareal mangler | E22: Tiltak 5 | I22: Balansert ventilasjon
I23: Balansert ventilasjon etableres eller eksisterende anlegg oppgraderes. Det skal
I24: minimum oppnås 80 % varmegjenvinning og en SFP på maksimum 1,5 kW/(m3/s).
I25: Gir ikke alltid energibesparelse, avhenger av førtilstand.
F27: Tiltak 6 | I27: Nattsenking
E28: Utføres på | G28: 100 | I28: Settpunkt romtemperatur for oppvarmingssystemet reduseres med minimum 2 °C
E29: % av BRA. | I29: om natta, og % av BRA må settes iht. berørt areal. Gir ikke besparelse for boliger som
I30: er bygd etter 1998.
F32: Tiltak 7 | I32: Energieffektiv belysningsutstyr
E33: Utføres på | G33: 100 | I33: Eksisterende belysning byttes med LED-belysning, alternativt annet energieffektiv
E34: % av BRA. | I34: belysningsutstyr som i snitt trekker ≤ 1,95 W/m². Gjelder kun innfelte spotter i tak og
I35: lysrørarmaturer, og % av BRA må settes iht. berørt areal.
F37: Tiltak 8 | I37: Solceller
E38: Produksjon per | I38: Leverandør dokumenterer forventet elektrisitetsproduksjon for anlegget som skal
E39: år i kWh | G39: 0 | I39: installeres.
F41: Tiltak 9 | I41: Solfanger
E42: Produksjon per | I42: Leverandør dokumenterer forventet termisk energiproduksjon for anlegget som skal
E43: år i kWh | G43: 0 | I43: installeres.
E45: Tiltak 10 | I45: Varmepumpe, luft til luft
I46: Det installeres varmepumpe tilpasset nordisk vinterforhold,
I47: plassert slik at størst mulig boareal nås av varmluften.
F49: Tiltak 11 | I49: Varmepumpe, øvrige (f.eks. luft til vann, vann til vann, avtrekksvarmepumpe)
E50: Angi produksjon per | I50: Varmepumpeløsning er mer kompleks enn i tiltak 10. I dette tilfelle skal leverandør
E51: år i kWh | G51: 0 | I51: beregne forventet besparelse etter eventuelle etterisoleringstiltak er gjennomført.

Sheet Beregninger (hidden)
B2: Graddagstall | D2: =VLOOKUP(Verktøy!C14,Input!B3:C424,2) -> 4009.6 | AG2: Småhus, besparelser i %
B3: Småhus, kWh/m2 BRA | Q3: EIso vegg | R3: EIso tak | S3: EIiso gulv | T3: Vinduer | U3: Balansert ventilasjon | W3: Nattsenking | X3: Energieffektiv belysningsutstyr | Z3: Solceller | AA3: Solfanger | AB3: Varmepumpe, luft til luft | AC3: Varmepumpe, øvrige (f.eks. luft til vann, vann til vann, avtrekksvarmepumpe) | AF3: Tiltak 1 | AG3: Tiltak 2 | AH3: Tiltak 3 | AI3: Tiltak 4 | AJ3: Tiltak 5 OP | AK3: Tiltak 5 EL | AL3: Tiltak 6 | AM3: Tiltak 7 OP | AN3: Tiltak 7 EL | AO3: Tiltak 8 | AP3: Tiltak 9 | AQ3: Tiltak 10 | AR3: Tiltak 11
C4: Byggeår | D4: Startpunkt | E4: RO+Vent | F4: Varmtvann | G4: El | H4: Besparelse % | I4: SP kk | J4: RO+Vent kk | K4: Total etter | L4: El etter tiltak | M4: Varmtvann etter | N4: RO etter | O4: Romoppv etter T 1 - 6 | P4: Trekk samtidighet | Q4: Besp T1 | R4: Besp T2 | S4: Besp T3 | T4: Besp T4 | U4: Besp T5 OP | V4: Besp T5 EL | W4: Besp T6 | X4: Besp T7 OP | Y4: Besp T7 EL | Z4: Besp T8 EL | AA4: Besp T9 OP | AB4: Besp T10 OP | AC4: Besp T11 OP | AF4: TRUE | AG4: TRUE | AH4: FALSE | AI4: FALSE | AJ4: FALSE | AK4: =AJ4 -> FALSE | AL4: FALSE | AM4: FALSE | AN4: =AM4 -> FALSE | AO4: FALSE | AP4: FALSE | AQ4: FALSE | AR4: FALSE | AT4: Eldre | AU4: 1 | AV4: 0 | AW4: 1950 | AX4: =IF(AND(Verktøy!$C$13>=AV4,Verktøy!$C$13<=AW4),AU4,"") -> 1
B5: Eldre | C5: < 1950 | D5: =Input!F5 -> 387 | E5: =Input!G5 -> 289.2 | F5: =Input!H5 -> 29.8 | G5: =D5-E5-F5 -> 68 | H5: =100-(K5*100/I5) -> 40.98144343 | I5: =D5-E5+J5 -> 383.7056955 | J5: =E5*(Beregninger!$D$2/Input!$C$254) -> 285.9056955 | K5: =L5+M5+N5 -> 226.457563 | L5: =G5-V5-Y5-Z5 -> 68 | M5: =IF(F5<0,0,F5) -> 29.8 | N5: =O5-X5-AA5-AB5-AC5 -> 128.657563 | O5: =IF(J5-SUM(Q5:U5)-W5+P5<0,0,J5-SUM(Q5:U5)-W5+P5) -> 128.657563 | P5: =AB26 -> 0 | Q5: =IF($AF$4=TRUE,J5*(AF5/100)*(Verktøy!$G$6/100),0) -> 114.3622782 | R5: =IF($AG$4=TRUE,J5*(AG5/100)*(Verktøy!$G$11/100),0) -> 42.88585433 | S5: =IF($AH$4=TRUE,J$5*(AH5/100)*(Verktøy!$G$15/100),0) -> 0 | T5: =IF($AI$4=TRUE,J5*(AI5/100)*(Verktøy!$G$19/100),0) -> 0 | U5: =IF($AJ$4=TRUE,J5*AJ5/100,0) -> 0 | V5: =IF($AK$4=TRUE,G5*AK5/100,0) -> 0 | W5: =IF($AL$4=TRUE,(J5-SUM(Q5:U5))*AL5/100*(Verktøy!$G$28/100),0) -> 0 | X5: =IF($AM$4=TRUE,IF(G5*AM5/100<-Y5,-Y5,G5*AM5/100)*(Verktøy!$G$33/100),0) -> 0 | Y5: =IF($AN$4=TRUE,G5*AN5/100*(Verktøy!$G$33/100),0) -> 0 | Z5: =IF($AO$4=TRUE,Verktøy!$G$39/Verktøy!$C$15,0) -> 0 | AA5: =IF($AP$4=TRUE,Verktøy!$G$43/Verktøy!$C$15,0) -> 0 | AB5: =IF($AQ$4=TRUE,O5*0.3*0.8*(1-(1/2.5)),0) -> 0 | AC5: =IF($AR$4=TRUE,Verktøy!$G$51/Verktøy!$C$15,0) -> 0 | AE5: Eldre | AF5: 40 | AG5: 15 | AH5: 16 | AI5: 20 | AJ5: 2 | AK5: -5 | AL5: 6 | AM5: -9 | AN5: 45 | AT5: TEK49 | AU5: 2 | AV5: =AW4+1 -> 1951 | AW5: 1970 | AX5: =IF(AND(Verktøy!$C$13>=AV5,Verktøy!$C$13<=AW5),AU5,"") -> 
B6: TEK49 | C6: 1951-1970 | D6: =Input!F6 -> 268 | E6: =Input!G6 -> 170.5 | F6: =Input!H6 -> 29.8 | G6: =D6-E6-F6 -> 67.7 | H6: =100-(K6*100/I6) -> 25.97507037 | I6: =D6-E6+J6 -> 266.0578184 | J6: =E6*(Beregninger!$D$2/Input!$C$254) -> 168.5578184 | K6: =L6+M6+N6 -> 196.9491129 | L6: 67.7 | M6: =IF(F6<0,0,F6) -> 29.8 | N6: 99.44911288 | O6: =IF(J6-SUM(Q6:U6)-W6+P6<0,0,J6-SUM(Q6:U6)-W6+P6) -> 99.44911288 | P6: 0 | Q6: =IF($AF$4=TRUE,J6*(AF6/100)*(Verktøy!$G$6/100),0) -> 55.62408008 | R6: =IF($AG$4=TRUE,J6*(AG6/100)*(Verktøy!$G$11/100),0) -> 13.48462547 | S6: =IF($AH$4=TRUE,J$6*(AH6/100)*(Verktøy!$G$15/100),0) -> 0 | T6: =IF($AI$4=TRUE,J6*(AI6/100)*(Verktøy!$G$19/100),0) -> 0 | U6: 0 | V6: 0 | W6: =IF($AL$4=TRUE,(J6-SUM(Q6:U6))*AL6/100*(Verktøy!$G$28/100),0) -> 0 | X6: =IF($AM$4=TRUE,IF(G6*AM6/100<-Y6,-Y6,G6*AM6/100)*(Verktøy!$G$33/100),0) -> 0 | Y6: =IF($AN$4=TRUE,G6*AN6/100*(Verktøy!$G$33/100),0) -> 0 | Z6: =IF($AO$4=TRUE,Verktøy!$G$39/Verktøy!$C$15,0) -> 0 | AA6: =IF($AP$4=TRUE,Verktøy!$G$43/Verktøy!$C$15,0) -> 0 | AB6: =IF($AQ$4=TRUE,O6*0.3*0.8*(1-(1/2.5)),0) -> 0 | AC6: =IF($AR$4=TRUE,Verktøy!$G$51/Verktøy!$C$15,0) -> 0 | AE6: TEK49 | AF6: 33 | AG6: 8 | AH6: 6 | AI6: 33 | AJ6: 3 | AK6: -5 | AL6: 6 | AM6: -15 | AN6: 45 | AT6: TEK69 | AU6: 3 | AV6: =AW5+1 -> 1971 | AW6: 1988 | AX6: =IF(AND(Verktøy!$C$13>=AV6,Verktøy!$C$13<=AW6),AU6,"") -> 
B7: TEK69 | C7: 1971 - 1988 | D7: =Input!F7 -> 253.4 | E7: =Input!G7 -> 155.8 | F7: =Input!H7 -> 29.8 | G7: 67.8 | H7: =100-(K7*100/I7) -> 18.97577036 | I7: 251.6252675 | J7: =E7*(Beregninger!$D$2/Input!$C$254) -> 154.0252675 | K7: =L7+M7+N7 -> 203.8774346 | L7: 67.8 | M7: 29.8 | N7: 106.2774346 | O7: 106.2774346 | P7: 0 | Q7: =IF($AF$4=TRUE,J7*(AF7/100)*(Verktøy!$G$6/100),0) -> 36.9660642 | R7: =IF($AG$4=TRUE,J7*(AG7/100)*(Verktøy!$G$11/100),0) -> 10.78176873 | S7: =IF($AH$4=TRUE,J$7*(AH7/100)*(Verktøy!$G$15/100),0) -> 0 | T7: =IF($AI$4=TRUE,J7*(AI7/100)*(Verktøy!$G$19/100),0) -> 0 | U7: 0 | V7: 0 | W7: =IF($AL$4=TRUE,(J7-SUM(Q7:U7))*AL7/100*(Verktøy!$G$28/100),0) -> 0 | X7: =IF($AM$4=TRUE,IF(G7*AM7/100<-Y7,-Y7,G7*AM7/100)*(Verktøy!$G$33/100),0) -> 0 | Y7: =IF($AN$4=TRUE,G7*AN7/100*(Verktøy!$G$33/100),0) -> 0 | Z7: =IF($AO$4=TRUE,Verktøy!$G$39/Verktøy!$C$15,0) -> 0 | AA7: =IF($AP$4=TRUE,Verktøy!$G$43/Verktøy!$C$15,0) -> 0 | AB7: 0 | AC7: =IF($AR$4=TRUE,Verktøy!$G$51/Verktøy!$C$15,0) -> 0 | AE7: TEK69 | AF7: 24 | AG7: 7 | AH7: 7 | AI7: 33 | AJ7: 3 | AK7: -6 | AL7: 6 | AM7: =-39*(Beregninger!$D$2/Input!$C$254) -> -38.55574732 | AN7: 56 | AT7: TEK87 | AU7: 4 | AV7: 1989 | AW7: 1998 | AX7: =IF(AND(Verktøy!$C$13>=AV7,Verktøy!$C$13<=AW7),AU7,"") -> 
B8: TEK87 | C8: 1989 - 1998 | D8: =Input!F8 -> 208 | E8: =Input!G8 -> 139 | F8: =Input!H8 -> 29.8 | G8: 39.2 | H8: 11.98304317 | I8: 206.4166379 | J8: =E8*(Beregninger!$D$2/Input!$C$254) -> 137.4166379 | K8: 181.6816431 | L8: 39.2 | M8: 29.8 | N8: 112.6816431 | O8: 112.6816431 | P8: 0 | Q8: =IF($AF$4=TRUE,J8*(AF8/100)*(Verktøy!$G$6/100),0) -> 21.98666206 | R8: =IF($AG$4=TRUE,J8*(AG8/100)*(Verktøy!$G$11/100),0) -> 2.748332758 | S8: =IF($AH$4=TRUE,J$8*(AH8/100)*(Verktøy!$G$15/100),0) -> 0 | T8: =IF($AI$4=TRUE,J8*(AI8/100)*(Verktøy!$G$19/100),0) -> 0 | U8: 0 | V8: 0 | W8: =IF($AL$4=TRUE,(J8-SUM(Q8:U8))*AL8/100*(Verktøy!$G$28/100),0) -> 0 | X8: =IF($AM$4=TRUE,IF(G8*AM8/100<-Y8,-Y8,G8*AM8/100)*(Verktøy!$G$33/100),0) -> 0 | Y8: =IF($AN$4=TRUE,G8*AN8/100*(Verktøy!$G$33/100),0) -> 0 | Z8: =IF($AO$4=TRUE,Verktøy!$G$39/Verktøy!$C$15,0) -> 0 | AA8: =IF($AP$4=TRUE,Verktøy!$G$43/Verktøy!$C$15,0) -> 0 | AB8: 0 | AC8: =IF($AR$4=TRUE,Verktøy!$G$51/Verktøy!$C$15,0) -> 0 | AE8: TEK87 | AF8: 16 | AG8: 2 | AH8: 6 | AI8: 28 | AJ8: 6 | AK8: 0 | AL8: 6 | AM8: =-8.7*(Beregninger!$D$2/Input!$C$254) -> -8.60089748 | AN8: 12 | AT8: TEK97 | AU8: 5 | AV8: 1999 | AW8: 2008 | AX8: =IF(AND(Verktøy!$C$13>=AV8,Verktøy!$C$13<=AW8),AU8,"") -> 
B9: TEK97 | C9: 1999 - 2008 | D9: =Input!F9 -> 161.7 | E9: =Input!G9 -> 92.8 | F9: =Input!H9 -> 29.8 | G9: 39.1 | H9: 6.853180771 | I9: 160.6429065 | J9: =E9*(Beregninger!$D$2/Input!$C$254) -> 91.74290645 | K9: 149.6337577 | L9: 39.1 | M9: 29.8 | N9: 80.73375768 | O9: 80.73375768 | P9: 0 | Q9: =IF($AF$4=TRUE,J9*(AF9/100)*(Verktøy!$G$6/100),0) -> 11.00914877 | R9: =IF($AG$4=TRUE,J9*(AG9/100)*(Verktøy!$G$11/100),0) -> 0 | S9: =IF($AH$4=TRUE,J$9*(AH9/100)*(Verktøy!$G$15/100),0) -> 0 | T9: =IF($AI$4=TRUE,J9*(AI9/100)*(Verktøy!$G$19/100),0) -> 0 | U9: 0 | V9: 0 | W9: =IF($AL$4=TRUE,(J9-SUM(Q9:U9))*AL9/100*(Verktøy!$G$28/100),0) -> 0 | X9: =IF($AM$4=TRUE,IF(G9*AM9/100<-Y9,-Y9,G9*AM9/100)*(Verktøy!$G$33/100),0) -> 0 | Y9: =IF($AN$4=TRUE,G9*AN9/100*(Verktøy!$G$33/100),0) -> 0 | Z9: =IF($AO$4=TRUE,Verktøy!$G$39/Verktøy!$C$15,0) -> 0 | AA9: =IF($AP$4=TRUE,Verktøy!$G$43/Verktøy!$C$15,0) -> 0 | AB9: 0 | AC9: =IF($AR$4=TRUE,Verktøy!$G$51/Verktøy!$C$15,0) -> 0 | AE9: TEK97 | AF9: 12 | AG9: 0 | AH9: 3 | AI9: 19 | AJ9: 9 | AK9: 0 | AL9: 0 | AM9: =-8.1*(Beregninger!$D$2/Input!$C$254) -> -8.007732137 | AN9: 12 | AT9: TEK07 | AU9: 6 | AV9: 2009 | AW9: 2011 | AX9: =IF(Verktøy!$C$13>=AV9,AU9,"") -> 
B10: TEK07 | C10: 2009 - | D10: =Input!F10 -> 132.6 | E10: =Input!G10 -> 61.1 | F10: =Input!H10 -> 29.8 | G10: 41.7 | H10: 0 | I10: 131.9040041 | J10: =E10*(Beregninger!$D$2/Input!$C$254) -> 60.40400414 | K10: 131.9040041 | L10: 41.7 | M10: 29.8 | N10: 60.40400414 | O10: 60.40400414 | P10: 0 | Q10: =IF($AF$4=TRUE,J10*(AF10/100)*(Verktøy!$G$6/100),0) -> 0 | R10: =IF($AG$4=TRUE,J10*(AG10/100)*(Verktøy!$G$11/100),0) -> 0 | S10: =IF($AH$4=TRUE,J$10*(AH10/100)*(Verktøy!$G$15/100),0) -> 0 | T10: =IF($AI$4=TRUE,J10*(AI10/100)*(Verktøy!$G$19/100),0) -> 0 | U10: 0 | V10: 0 | W10: =IF($AL$4=TRUE,(J10-SUM(Q10:U10))*AL10/100*(Verktøy!$G$28/100),0) -> 0 | X10: =IF($AM$4=TRUE,IF(G10*AM10/100<-Y10,-Y10,G10*AM10/100)*(Verktøy!$G$33/100),0) -> 0 | Y10: =IF($AN$4=TRUE,G10*AN10/100*(Verktøy!$G$33/100),0) -> 0 | Z10: =IF($AO$4=TRUE,Verktøy!$G$39/Verktøy!$C$15,0) -> 0 | AA10: =IF($AP$4=TRUE,Verktøy!$G$43/Verktøy!$C$15,0) -> 0 | AB10: 0 | AC10: =IF($AR$4=TRUE,Verktøy!$G$51/Verktøy!$C$15,0) -> 0 | AE10: TEK07 | AF10: 0 | AG10: 0 | AH10: 5 | AI10: 23 | AJ10: 6 | AK10: 7 | AL10: 0 | AM10: =-7.3*(Beregninger!$D$2/Input!$C$254) -> -7.216845012 | AN10: 12 | AX10: =SUM(AX4:AX9) -> 1
H12: =INDEX(Beregninger!H5:H10,Beregninger!AX10) -> 40.98144343
B13: Boligblokk, kWh/m2 BRA | AE13: Boligblokk, besparelser i %
C14: Byggeår | D14: Startpunkt | E14: RO+Vent | F14: Varmtvann | G14: El | H14: Besparelse % | I14: SP kk | J14: RO+Vent kk | K14: Total etter | L14: El etter tiltak | M14: Varmtvann etter | N14: RO etter | O14: Romoppv etter T 1 - 6 | P14: Trekk samtidighet | Q14: Besp T1 | R14: Besp T2 | S14: Besp T3 | T14: Besp T4 | U14: Besp T5 OP | V14: Besp T5 EL | W14: Besp T6 | X14: Besp T7 OP | Y14: Besp T7 EL | Z14: Besp T8 EL | AA14: Besp T9 OP | AB14: Besp T10 OP | AC14: Besp T11 OP | AF14: Tiltak 1 | AG14: Tiltak 2 | AH14: Tiltak 3 | AI14: Tiltak 4 | AJ14: Tiltak 5 OP | AK14: Tiltak 5 EL | AL14: Tiltak 6 | AM14: Tiltak 7 OP | AN14: Tiltak 7 EL | AO14: Tiltak 8 | AP14: Tiltak 9 | AQ14: Tiltak 10 | AR14: Tiltak 11
B15: Eldre | C15: < 1950 | D15: =Input!I5 -> 297.3 | E15: =Input!J5 -> 199.7 | F15: =Input!K5 -> 29.8 | G15: =D15-E15-F15 -> 67.8 | H15: =100-(K15*100/I15) -> 36.13576323 | I15: =D15-E15+J15 -> 295.0251985 | J15: =E15*(Beregninger!$D$2/Input!$C$254) -> 197.4251985 | K15: =L15+M15+N15 -> 188.4155913 | L15: =G15-V15-Y15-Z15 -> 67.8 | M15: =IF(F15<0,0,F15) -> 29.8 | N15: =O15-X15-AA15-AB15-AC15 -> 90.8155913 | O15: =IF(J15-SUM(Q15:U15)-W15+P15<0,0,J15-SUM(Q15:U15)-W15+P15) -> 90.8155913 | P15: =AB34 -> 0 | Q15: =IF($AF$4=TRUE,J15*(AF15/100)*(Verktøy!$G$6/100),0) -> 82.91858336 | R15: =IF($AG$4=TRUE,J15*(AG15/100)*(Verktøy!$G$11/100),0) -> 23.69102382 | S15: =IF($AH$4=TRUE,J$15*(AH15/100)*(Verktøy!$G$15/100),0) -> 0 | T15: =IF($AI$4=TRUE,J15*(AI16/100)*(Verktøy!$G$19/100),0) -> 0 | U15: =IF($AJ$4=TRUE,J15*AJ15/100,0) -> 0 | V15: =IF($AK$4=TRUE,G15*AK16/100,0) -> 0 | W15: =IF($AL$4=TRUE,(J15-SUM(Q15:U15))*AL16/100*(Verktøy!$G$28/100),0) -> 0 | X15: =IF($AM$4=TRUE,IF(G15*AM16/100<-Y15,-Y15,G15*AM16/100)*(Verktøy!$G$33/100),0) -> 0 | Y15: =IF($AN$4=TRUE,G15*AN15/100*(Verktøy!$G$33/100),0) -> 0 | Z15: =IF($AO$4=TRUE,Verktøy!$G$39/Verktøy!$C$15,0) -> 0 | AA15: =IF($AP$4=TRUE,Verktøy!$G$43/Verktøy!$C$15,0) -> 0 | AB15: =IF($AQ$4=TRUE,O15*0.3*0.8*(1-(1/2.5)),0) -> 0 | AC15: =IF($AR$4=TRUE,Verktøy!$G$51/Verktøy!$C$15,0) -> 0 | AE15: Eldre | AF15: 42 | AG15: 12 | AH15: 12 | AI15: 20 | AJ15: 6 | AK15: -6 | AL15: 6 | AM15: -12 | AN15: 45
B16: TEK49 | C16: 1951-1970 | D16: =Input!I6 -> 245.1 | E16: =Input!J6 -> 147.8 | F16: =Input!K6 -> 29.8 | G16: =D16-E16-F16 -> 67.5 | H16: =100-(K16*100/I16) -> 27.612578 | I16: =D16-E16+J16 -> 243.4163963 | J16: =E16*(Beregninger!$D$2/Input!$C$254) -> 146.1163963 | K16: =L16+M16+N16 -> 176.202854 | L16: 67.5 | M16: =IF(F16<0,0,F16) -> 29.8 | N16: 78.90285399 | O16: =IF(J16-SUM(Q16:U16)-W16+P16<0,0,J16-SUM(Q16:U16)-W16+P16) -> 78.90285399 | P16: 0 | Q16: =IF($AF$4=TRUE,J16*(AF16/100)*(Verktøy!$G$6/100),0) -> 58.44655851 | R16: =IF($AG$4=TRUE,J16*(AG16/100)*(Verktøy!$G$11/100),0) -> 8.766983776 | S16: =IF($AH$4=TRUE,J$16*(AH16/100)*(Verktøy!$G$15/100),0) -> 0 | T16: =IF($AI$4=TRUE,J16*(AI17/100)*(Verktøy!$G$19/100),0) -> 0 | U16: 0 | V16: =IF($AK$4=TRUE,G16*AK17/100,0) -> 0 | W16: =IF($AL$4=TRUE,(J16-SUM(Q16:U16))*AL17/100*(Verktøy!$G$28/100),0) -> 0 | X16: =IF($AM$4=TRUE,IF(G16*AM17/100<-Y16,-Y16,G16*AM17/100)*(Verktøy!$G$33/100),0) -> 0 | Y16: =IF($AN$4=TRUE,G16*AN16/100*(Verktøy!$G$33/100),0) -> 0 | Z16: =IF($AO$4=TRUE,Verktøy!$G$39/Verktøy!$C$15,0) -> 0 | AA16: =IF($AP$4=TRUE,Verktøy!$G$43/Verktøy!$C$15,0) -> 0 | AB16: 0 | AC16: =IF($AR$4=TRUE,Verktøy!$G$51/Verktøy!$C$15,0) -> 0 | AE16: TEK49 | AF16: 40 | AG16: 6 | AH16: 6 | AI16: 25 | AJ16: 8 | AK16: -6 | AL16: 6 | AM16: -16 | AN16: 45
B17: TEK69 | C17: 1971 - 1988 | D17: =Input!I7 -> 214.7 | E17: =Input!J7 -> 112.1 | F17: =Input!K7 -> 29.8 | G17: 72.8 | H17: =100-(K17*100/I17) -> 12.46235257 | I17: 213.4230583 | J17: =E17*(Beregninger!$D$2/Input!$C$254) -> 110.8230583 | K17: =L17+M17+N17 -> 186.8255243 | L17: 72.8 | M17: 29.8 | N17: 84.22552434 | O17: 84.22552434 | P17: 0 | Q17: =IF($AF$4=TRUE,J17*(AF17/100)*(Verktøy!$G$6/100),0) -> 18.83991992 | R17: =IF($AG$4=TRUE,J17*(AG17/100)*(Verktøy!$G$11/100),0) -> 7.757614084 | S17: =IF($AH$4=TRUE,J$17*(AH17/100)*(Verktøy!$G$15/100),0) -> 0 | T17: =IF($AI$4=TRUE,J17*(AI18/100)*(Verktøy!$G$19/100),0) -> 0 | U17: 0 | V17: =IF($AK$4=TRUE,G17*AK18/100,0) -> 0 | W17: =IF($AL$4=TRUE,(J17-SUM(Q17:U17))*AL18/100*(Verktøy!$G$28/100),0) -> 0 | X17: =IF($AM$4=TRUE,IF(G17*AM18/100<-Y17,-Y17,G17*AM18/100)*(Verktøy!$G$33/100),0) -> 0 | Y17: =IF($AN$4=TRUE,G17*AN17/100*(Verktøy!$G$33/100),0) -> 0 | Z17: =IF($AO$4=TRUE,Verktøy!$G$39/Verktøy!$C$15,0) -> 0 | AA17: =IF($AP$4=TRUE,Verktøy!$G$43/Verktøy!$C$15,0) -> 0 | AB17: 0 | AC17: =IF($AR$4=TRUE,Verktøy!$G$51/Verktøy!$C$15,0) -> 0 | AE17: TEK69 | AF17: 17 | AG17: 7 | AH17: 6 | AI17: 31 | AJ17: 16 | AK17: 0 | AL17: 6 | AM17: =-34*(Beregninger!$D$2/Input!$C$254) -> -33.6127028 | AN17: 50
B18: TEK87 | C18: 1989 - 1998 | D18: =Input!I8 -> 176.2 | E18: =Input!J8 -> 106.3 | F18: =Input!K8 -> 29.8 | G18: 40.1 | H18: =100-(K18*100/I18) -> 8.407652529 | I18: 174.9891267 | J18: =E18*(Beregninger!$D$2/Input!$C$254) -> 105.0891267 | K18: 160.2766489 | L18: 40.1 | M18: 29.8 | N18: 90.37664895 | O18: 90.37664895 | P18: 0 | Q18: =IF($AF$4=TRUE,J18*(AF18/100)*(Verktøy!$G$6/100),0) -> 12.6106952 | R18: =IF($AG$4=TRUE,J18*(AG18/100)*(Verktøy!$G$11/100),0) -> 2.101782534 | S18: =IF($AH$4=TRUE,J$18*(AH18/100)*(Verktøy!$G$15/100),0) -> 0 | T18: =IF($AI$4=TRUE,J18*(AI19/100)*(Verktøy!$G$19/100),0) -> 0 | U18: 0 | V18: =IF($AK$4=TRUE,G18*AK19/100,0) -> 0 | W18: =IF($AL$4=TRUE,(J18-SUM(Q18:U18))*AL19/100*(Verktøy!$G$28/100),0) -> 0 | X18: =IF($AM$4=TRUE,IF(G18*AM19/100<-Y18,-Y18,G18*AM19/100)*(Verktøy!$G$33/100),0) -> 0 | Y18: =IF($AN$4=TRUE,G18*AN18/100*(Verktøy!$G$33/100),0) -> 0 | Z18: =IF($AO$4=TRUE,Verktøy!$G$39/Verktøy!$C$15,0) -> 0 | AA18: =IF($AP$4=TRUE,Verktøy!$G$43/Verktøy!$C$15,0) -> 0 | AB18: 0 | AC18: =IF($AR$4=TRUE,Verktøy!$G$51/Verktøy!$C$15,0) -> 0 | AE18: TEK87 | AF18: 12 | AG18: 2 | AH18: 3 | AI18: 25 | AJ18: 22 | AK18: 1 | AL18: 5 | AM18: =-8.1*(Beregninger!$D$2/Input!$C$254) -> -8.007732137 | AN18: 12
B19: TEK97 | C19: 1999 - 2008 | D19: =Input!I9 -> 146.1 | E19: =Input!J9 -> 76.6 | F19: =Input!K9 -> 29.8 | G19: 39.7 | H19: 8.864485236 | I19: 145.2274422 | J19: =E19*(Beregninger!$D$2/Input!$C$254) -> 75.72744218 | K19: 132.353777 | L19: 39.7 | M19: 29.8 | N19: 62.85377701 | O19: 62.85377701 | P19: 0 | Q19: =IF($AF$4=TRUE,J19*(AF19/100)*(Verktøy!$G$6/100),0) -> 12.87366517 | R19: =IF($AG$4=TRUE,J19*(AG19/100)*(Verktøy!$G$11/100),0) -> 0 | S19: =IF($AH$4=TRUE,J$19*(AH19/100)*(Verktøy!$G$15/100),0) -> 0 | T19: =IF($AI$4=TRUE,J19*(AI20/100)*(Verktøy!$G$19/100),0) -> 0 | U19: 0 | V19: =IF($AK$4=TRUE,G19*AK20/100,0) -> 0 | W19: =IF($AL$4=TRUE,(J19-SUM(Q19:U19))*AL20/100*(Verktøy!$G$28/100),0) -> 0 | X19: =IF($AM$4=TRUE,IF(G19*AM20/100<-Y19,-Y19,G19*AM20/100)*(Verktøy!$G$33/100),0) -> 0 | Y19: =IF($AN$4=TRUE,G19*AN19/100*(Verktøy!$G$33/100),0) -> 0 | Z19: =IF($AO$4=TRUE,Verktøy!$G$39/Verktøy!$C$15,0) -> 0 | AA19: =IF($AP$4=TRUE,Verktøy!$G$43/Verktøy!$C$15,0) -> 0 | AB19: 0 | AC19: =IF($AR$4=TRUE,Verktøy!$G$51/Verktøy!$C$15,0) -> 0 | AE19: TEK97 | AF19: 17 | AG19: 0 | AH19: 2 | AI19: 12 | AJ19: 27 | AK19: 0 | AL19: 0 | AM19: =-7.6*(Beregninger!$D$2/Input!$C$254) -> -7.513427684 | AN19: 12
B20: TEK07 | C20: 2009 - | D20: =Input!I10 -> 115.8 | E20: =Input!J10 -> 42.7 | F20: =Input!K10 -> 29.8 | G20: 43.3 | H20: =100-(K20*100/I20) -> 0 | I20: 115.3136003 | J20: =E20*(Beregninger!$D$2/Input!$C$254) -> 42.21360028 | K20: 115.3136003 | L20: 43.3 | M20: 29.8 | N20: 42.21360028 | O20: 42.21360028 | P20: 0 | Q20: =IF($AF$4=TRUE,J20*(AF20/100)*(Verktøy!$G$6/100),0) -> 0 | R20: =IF($AG$4=TRUE,J20*(AG20/100)*(Verktøy!$G$11/100),0) -> 0 | S20: =IF($AH$4=TRUE,J$20*(AH20/100)*(Verktøy!$G$15/100),0) -> 0 | T20: =IF($AI$4=TRUE,J20*(AK21/100)*(Verktøy!$G$19/100),0) -> 0 | U20: 0 | V20: =IF($AK$4=TRUE,G20*AM21/100,0) -> 0 | W20: =IF($AL$4=TRUE,(J20-SUM(Q20:U20))*AN21/100*(Verktøy!$G$28/100),0) -> 0 | X20: =IF($AM$4=TRUE,IF(G20*AO21/100<-Y20,-Y20,G20*AO21/100)*(Verktøy!$G$33/100),0) -> 0 | Y20: =IF($AN$4=TRUE,G20*AN20/100*(Verktøy!$G$33/100),0) -> 0 | Z20: =IF($AO$4=TRUE,Verktøy!$G$39/Verktøy!$C$15,0) -> 0 | AA20: =IF($AP$4=TRUE,Verktøy!$G$43/Verktøy!$C$15,0) -> 0 | AB20: 0 | AC20: =IF($AR$4=TRUE,Verktøy!$G$51/Verktøy!$C$15,0) -> 0 | AE20: TEK07 | AF20: 0 | AG20: 0 | AH20: 4 | AI20: 20 | AJ20: 11 | AK20: 9 | AL20: 0 | AM20: =-6.3*(Beregninger!$D$2/Input!$C$254) -> -6.228236106 | AN20: 11
H22: =INDEX(H15:H20,AX10) -> 36.13576323
O23: Mellomregning av reduksjon i besparelse ved gjennomføring av flere tiltak samtidig
B24: 1) Startpunkt er hentet fra NVE oppdraget (VV er tilpasset), eldre og TEK07 er laget med input i "Historiske TEK". | P24: Tiltakskombinasjon | Q24: 1+4 | R24: 1+3+4 | S24: 1+2+4 | T24: 1+6 | U24: 2+6 | V24: 3+6 | W24: 4+6 | X24: 1+4+6 | Y24: 1+2+4+6 | Z24: 1+3+4+6 | AA24: 1+2+3+4+6 | AB24: AKTUELL
B25: 2) Graddagstall er fra 2020 og hentet fra eklima | O25: Småhus | P25: Byggeår | Q25: 3.5 | R25: 2.7 | S25: 0.9 | T25: 1.9 | U25: 0.6 | V25: 0.4 | W25: 1.1 | X25: 6.1 | Y25: 5.4 | Z25: 5.3 | AA25: 4.9 | AG25: 1) I første fanen hukes det av for de forskjellige tiltakene. Er det huket av for et tiltak vil verdiene i AF4:AR4 bytte til TRUE som er en av faktorene for å hente ut riktig besparelse.
B26: 3) Besparelser er hentet fra NVE arket, eller simulert selv | O26: Eldre | P26: < 1950 | Q26: =IF(AND($AF$4=TRUE,$AI$4=TRUE,$AG$4=FALSE,$AH$4=FALSE,$AL$4=FALSE),(Q5+T5)*($Q$25/100),0) -> 0 | R26: =IF(AND($AF$4=TRUE,$AG$4=FALSE,$AH$4=TRUE,$AI$4=TRUE,$AL$4=FALSE),(Q5+T5+S5)*($R$25/100),0) -> 0 | S26: =IF(AND($AF$4=TRUE,$AG$4=TRUE,$AH$4=FALSE,$AI$4=TRUE,$AL$4=FALSE),(Q5+T5+R5)*($S$25/100),0) -> 0 | T26: =IF(AND($AF$4=TRUE,$AG$4=FALSE,$AH$4=FALSE,$AI$4=FALSE,$AL$4=TRUE),(Q5+W5)*($T$25/100),0) -> 0 | U26: =IF(AND($AF$4=FALSE,$AG$4=TRUE,$AH$4=FALSE,$AI$4=FALSE,$AL$4=TRUE),(R5+W5)*($U$25/100),0) -> 0 | V26: =IF(AND($AF$4=FALSE,$AG$4=FALSE,$AH$4=TRUE,$AI$4=FALSE,$AL$4=TRUE),(S5+W5)*($V$25/100),0) -> 0 | W26: =IF(AND($AF$4=FALSE,$AG$4=FALSE,$AH$4=FALSE,$AI$4=TRUE,$AL$4=TRUE),(T5+W5)*($W$25/100),0) -> 0 | X26: =IF(AND($AF$4=TRUE,$AG$4=FALSE,$AH$4=FALSE,$AI$4=TRUE,$AL$4=TRUE),(Q5+T5+W5)*($X$25/100),0) -> 0 | Y26: =IF(AND($AF$4=TRUE,$AG$4=TRUE,$AH$4=FALSE,$AI$4=TRUE,$AL$4=TRUE),(Q5+R5+T5+W5)*($Y$25/100),0) -> 0 | Z26: =IF(AND($AF$4=TRUE,$AG$4=FALSE,$AH$4=TRUE,$AI$4=TRUE,$AL$4=TRUE),(Q5+S5+T5+W5)*($Z$25/100),0) -> 0 | AA26: =IF(AND($AF$4=TRUE,$AG$4=TRUE,$AH$4=TRUE,$AI$4=TRUE,$AL$4=TRUE),(Q5+R5+S5+T5+W5)*($AA$25/100),0) -> 0 | AB26: =SUM(Q26:AA26) -> 0 | AG26: 2) Formlene i Q5:AC20 sjekker om det er huket av for tiltaket gjennom TRUE/FALSE i rekke 4 og henter riktig verdi ut av tabellen.
O27: TEK49 | P27: 1951-1970 | Q27: 0 | R27: =IF(AND($AF$4=TRUE,$AI$4=TRUE,$AH$4=TRUE,$AG$4=FALSE,$AL$4=FALSE),(Q6+T6+S6)*($R$25/100),0) -> 0 | S27: 0 | T27: 0 | U27: 0 | V27: 0 | W27: 0 | X27: 0 | Y27: 0 | Z27: 0 | AA27: 0 | AB27: =SUM(Q27:AA27) -> 0 | AG27: 3) Står det FALSE i tiltaket er blir verdien automatisk satt til 0.
O28: TEK69 | P28: 1971 - 1988 | Q28: 0 | R28: =IF(AND($AF$4=TRUE,$AI$4=TRUE,$AH$4=TRUE,$AG$4=FALSE,$AL$4=FALSE),(Q7+T7+S7)*($R$25/100),0) -> 0 | S28: 0 | T28: 0 | U28: 0 | V28: 0 | W28: 0 | X28: 0 | Y28: 0 | Z28: 0 | AA28: 0 | AB28: 0 | AG28: 4) I første fanen henter feltet som angir besparelsen summen fra H12 eller H22, avhengig av om det er valgt småhus eller boligblokk.
O29: TEK87 | P29: 1989 - 1998 | Q29: 0 | R29: =IF(AND($AF$4=TRUE,$AI$4=TRUE,$AH$4=TRUE,$AG$4=FALSE,$AL$4=FALSE),(Q8+T8+S8)*($R$25/100),0) -> 0 | S29: 0 | T29: 0 | U29: 0 | V29: 0 | W29: 0 | X29: 0 | Y29: 0 | Z29: 0 | AA29: 0 | AB29: 0
O30: TEK97 | P30: 1999 - 2008 | Q30: 0 | R30: =IF(AND($AF$4=TRUE,$AI$4=TRUE,$AH$4=TRUE,$AG$4=FALSE,$AL$4=FALSE),(Q9+T9+S9)*($R$25/100),0) -> 0 | S30: 0 | T30: 0 | U30: 0 | V30: 0 | W30: 0 | X30: 0 | Y30: 0 | Z30: 0 | AA30: 0 | AB30: 0
O31: TEK07 | P31: 2009 - | Q31: 0 | R31: =IF(AND($AF$4=TRUE,$AI$4=TRUE,$AH$4=TRUE,$AG$4=FALSE,$AL$4=FALSE),(Q10+T10+S10)*($R$25/100),0) -> 0 | S31: 0 | T31: 0 | U31: 0 | V31: 0 | W31: 0 | X31: 0 | Y31: 0 | Z31: 0 | AA31: 0 | AB31: 0
O33: Boligblokk | P33: Byggeår | Q33: 0.7 | R33: 0.1 | S33: 0 | T33: 1.4 | U33: 0.4 | V33: 0.3 | W33: 1.3 | X33: 3.3 | Y33: 2.7 | Z33: 3 | AA33: 2.3
O34: Eldre | P34: < 1950 | Q34: =IF(AND($AF$4=TRUE,$AI$4=TRUE,$AG$4=FALSE,$AH$4=FALSE,$AL$4=FALSE),(Q15+T15)*($Q$33/100),0) -> 0 | R34: =IF(AND($AF$4=TRUE,$AI$4=TRUE,$AH$4=TRUE,$AG$4=FALSE,$AL$4=FALSE),(Q15+T15+S15)*($R$33/100),0) -> 0 | S34: =IF(AND($AF$4=TRUE,$AG$4=TRUE,$AH$4=FALSE,$AI$4=TRUE,$AL$4=FALSE),(Q15+T15+R15)*($S$33/100),0) -> 0 | T34: =IF(AND($AF$4=TRUE,$AG$4=FALSE,$AH$4=FALSE,$AI$4=FALSE,$AL$4=TRUE),(Q15+W15)*($T$33/100),0) -> 0 | U34: =IF(AND($AF$4=FALSE,$AG$4=TRUE,$AH$4=FALSE,$AI$4=FALSE,$AL$4=TRUE),(R15+W15)*($U$33/100),0) -> 0 | V34: =IF(AND($AF$4=FALSE,$AG$4=FALSE,$AH$4=TRUE,$AI$4=FALSE,$AL$4=TRUE),(S15+W15)*($V$33/100),0) -> 0 | W34: =IF(AND($AF$4=FALSE,$AG$4=FALSE,$AH$4=FALSE,$AI$4=TRUE,$AL$4=TRUE),(T15+W15)*($W$33/100),0) -> 0 | X34: =IF(AND($AF$4=TRUE,$AG$4=FALSE,$AH$4=FALSE,$AI$4=TRUE,$AL$4=TRUE),(Q15+T15+W15)*($X$33/100),0) -> 0 | Y34: =IF(AND($AF$4=TRUE,$AG$4=TRUE,$AH$4=FALSE,$AI$4=TRUE,$AL$4=TRUE),(Q15+R15+T15+W15)*($Y$33/100),0) -> 0 | Z34: =IF(AND($AF$4=TRUE,$AG$4=FALSE,$AH$4=TRUE,$AI$4=TRUE,$AL$4=TRUE),(Q15+S15+T15+W15)*($Z$33/100),0) -> 0 | AA34: =IF(AND($AF$4=TRUE,$AG$4=TRUE,$AH$4=TRUE,$AI$4=TRUE,$AL$4=TRUE),(Q15+R15+S15+T15+W15)*($AA$33/100),0) -> 0 | AB34: =SUM(Q34:AA34) -> 0
O35: TEK49 | P35: 1951-1970 | Q35: =IF(AND($AF$4=TRUE,$AI$4=TRUE,$AG$4=FALSE,$AH$4=FALSE,$AL$4=FALSE),(Q16+T16)*($Q$25/100),0) -> 0 | R35: =IF(AND($AF$4=TRUE,$AI$4=TRUE,$AH$4=TRUE,$AG$4=FALSE,$AL$4=FALSE),(Q16+T16+S16)*($R$25/100),0) -> 0 | S35: =IF(AND($AF$4=TRUE,$AG$4=TRUE,$AH$4=FALSE,$AI$4=TRUE,$AL$4=FALSE),(Q16+T16+R16)*($S$25/100),0) -> 0 | T35: =IF(AND($AF$4=TRUE,$AG$4=FALSE,$AH$4=FALSE,$AI$4=FALSE,$AL$4=TRUE),(Q16+W16)*($T$25/100),0) -> 0 | U35: =IF(AND($AF$4=FALSE,$AG$4=TRUE,$AH$4=FALSE,$AI$4=FALSE,$AL$4=TRUE),(R16+W16)*($U$25/100),0) -> 0 | V35: =IF(AND($AF$4=FALSE,$AG$4=FALSE,$AH$4=TRUE,$AI$4=FALSE,$AL$4=TRUE),(S16+W16)*($V$25/100),0) -> 0 | W35: =IF(AND($AF$4=FALSE,$AG$4=FALSE,$AH$4=FALSE,$AI$4=TRUE,$AL$4=TRUE),(T16+W16)*($W$25/100),0) -> 0 | X35: =IF(AND($AF$4=TRUE,$AG$4=FALSE,$AH$4=FALSE,$AI$4=TRUE,$AL$4=TRUE),(Q16+T16+W16)*($X$25/100),0) -> 0 | Y35: =IF(AND($AF$4=TRUE,$AG$4=TRUE,$AH$4=FALSE,$AI$4=TRUE,$AL$4=TRUE),(Q16+R16+T16+W16)*($Y$25/100),0) -> 0 | Z35: =IF(AND($AF$4=TRUE,$AG$4=FALSE,$AH$4=TRUE,$AI$4=TRUE,$AL$4=TRUE),(Q16+S16+T16+W16)*($Z$25/100),0) -> 0 | AA35: =IF(AND($AF$4=TRUE,$AG$4=TRUE,$AH$4=TRUE,$AI$4=TRUE,$AL$4=TRUE),(Q16+R16+S16+T16+W16)*($AA$25/100),0) -> 0 | AB35: =SUM(Q35:AA35) -> 0
O36: TEK69 | P36: 1971 - 1988 | Q36: =IF(AND($AF$4=TRUE,$AI$4=TRUE,$AG$4=FALSE,$AH$4=FALSE,$AL$4=FALSE),(Q17+T17)*($Q$25/100),0) -> 0 | R36: =IF(AND($AF$4=TRUE,$AI$4=TRUE,$AH$4=TRUE,$AG$4=FALSE,$AL$4=FALSE),(Q17+T17+S17)*($R$25/100),0) -> 0 | S36: =IF(AND($AF$4=TRUE,$AG$4=TRUE,$AH$4=FALSE,$AI$4=TRUE,$AL$4=FALSE),(Q17+T17+R17)*($S$25/100),0) -> 0 | T36: =IF(AND($AF$4=TRUE,$AG$4=FALSE,$AH$4=FALSE,$AI$4=FALSE,$AL$4=TRUE),(Q17+W17)*($T$25/100),0) -> 0 | U36: =IF(AND($AF$4=FALSE,$AG$4=TRUE,$AH$4=FALSE,$AI$4=FALSE,$AL$4=TRUE),(R17+W17)*($U$25/100),0) -> 0 | V36: =IF(AND($AF$4=FALSE,$AG$4=FALSE,$AH$4=TRUE,$AI$4=FALSE,$AL$4=TRUE),(S17+W17)*($V$25/100),0) -> 0 | W36: =IF(AND($AF$4=FALSE,$AG$4=FALSE,$AH$4=FALSE,$AI$4=TRUE,$AL$4=TRUE),(T17+W17)*($W$25/100),0) -> 0 | X36: =IF(AND($AF$4=TRUE,$AG$4=FALSE,$AH$4=FALSE,$AI$4=TRUE,$AL$4=TRUE),(Q17+T17+W17)*($X$25/100),0) -> 0 | Y36: =IF(AND($AF$4=TRUE,$AG$4=TRUE,$AH$4=FALSE,$AI$4=TRUE,$AL$4=TRUE),(Q17+R17+T17+W17)*($Y$25/100),0) -> 0 | Z36: =IF(AND($AF$4=TRUE,$AG$4=FALSE,$AH$4=TRUE,$AI$4=TRUE,$AL$4=TRUE),(Q17+S17+T17+W17)*($Z$25/100),0) -> 0 | AA36: =IF(AND($AF$4=TRUE,$AG$4=TRUE,$AH$4=TRUE,$AI$4=TRUE,$AL$4=TRUE),(Q17+R17+S17+T17+W17)*($AA$25/100),0) -> 0 | AB36: 0
O37: TEK87 | P37: 1989 - 1998 | Q37: =IF(AND($AF$4=TRUE,$AI$4=TRUE,$AG$4=FALSE,$AH$4=FALSE,$AL$4=FALSE),(Q18+T18)*($Q$25/100),0) -> 0 | R37: =IF(AND($AF$4=TRUE,$AI$4=TRUE,$AH$4=TRUE,$AG$4=FALSE,$AL$4=FALSE),(Q18+T18+S18)*($R$25/100),0) -> 0 | S37: =IF(AND($AF$4=TRUE,$AG$4=TRUE,$AH$4=FALSE,$AI$4=TRUE,$AL$4=FALSE),(Q18+T18+R18)*($S$25/100),0) -> 0 | T37: =IF(AND($AF$4=TRUE,$AG$4=FALSE,$AH$4=FALSE,$AI$4=FALSE,$AL$4=TRUE),(Q18+W18)*($T$25/100),0) -> 0 | U37: =IF(AND($AF$4=FALSE,$AG$4=TRUE,$AH$4=FALSE,$AI$4=FALSE,$AL$4=TRUE),(R18+W18)*($U$25/100),0) -> 0 | V37: =IF(AND($AF$4=FALSE,$AG$4=FALSE,$AH$4=TRUE,$AI$4=FALSE,$AL$4=TRUE),(S18+W18)*($V$25/100),0) -> 0 | W37: =IF(AND($AF$4=FALSE,$AG$4=FALSE,$AH$4=FALSE,$AI$4=TRUE,$AL$4=TRUE),(T18+W18)*($W$25/100),0) -> 0 | X37: =IF(AND($AF$4=TRUE,$AG$4=FALSE,$AH$4=FALSE,$AI$4=TRUE,$AL$4=TRUE),(Q18+T18+W18)*($X$25/100),0) -> 0 | Y37: =IF(AND($AF$4=TRUE,$AG$4=TRUE,$AH$4=FALSE,$AI$4=TRUE,$AL$4=TRUE),(Q18+R18+T18+W18)*($Y$25/100),0) -> 0 | Z37: =IF(AND($AF$4=TRUE,$AG$4=FALSE,$AH$4=TRUE,$AI$4=TRUE,$AL$4=TRUE),(Q18+S18+T18+W18)*($Z$25/100),0) -> 0 | AA37: =IF(AND($AF$4=TRUE,$AG$4=TRUE,$AH$4=TRUE,$AI$4=TRUE,$AL$4=TRUE),(Q18+R18+S18+T18+W18)*($AA$25/100),0) -> 0 | AB37: 0
O38: TEK97 | P38: 1999 - 2008 | Q38: =IF(AND($AF$4=TRUE,$AI$4=TRUE,$AG$4=FALSE,$AH$4=FALSE,$AL$4=FALSE),(Q19+T19)*($Q$25/100),0) -> 0 | R38: =IF(AND($AF$4=TRUE,$AI$4=TRUE,$AH$4=TRUE,$AG$4=FALSE,$AL$4=FALSE),(Q19+T19+S19)*($R$25/100),0) -> 0 | S38: =IF(AND($AF$4=TRUE,$AG$4=TRUE,$AH$4=FALSE,$AI$4=TRUE,$AL$4=FALSE),(Q19+T19+R19)*($S$25/100),0) -> 0 | T38: 0 | U38: 0 | V38: 0 | W38: 0 | X38: 0 | Y38: 0 | Z38: 0 | AA38: 0 | AB38: 0
O39: TEK07 | P39: 2009 - | Q39: =IF(AND($AF$4=TRUE,$AI$4=TRUE,$AG$4=FALSE,$AH$4=FALSE,$AL$4=FALSE),(Q20+T20)*($Q$25/100),0) -> 0 | R39: =IF(AND($AF$4=TRUE,$AI$4=TRUE,$AH$4=TRUE,$AG$4=FALSE,$AL$4=FALSE),(Q20+T20+S20)*($R$25/100),0) -> 0 | S39: =IF(AND($AF$4=TRUE,$AG$4=TRUE,$AH$4=FALSE,$AI$4=TRUE,$AL$4=FALSE),(Q20+T20+R20)*($S$25/100),0) -> 0 | T39: 0 | U39: 0 | V39: 0 | W39: 0 | X39: 0 | Y39: 0 | Z39: 0 | AA39: 0 | AB39: 0

Sheet Energimerke D (hidden)
B2: Graddagstall | D2: =Input!$C$254 -> 4055.8 | AG2: Småhus, besparelser i %
B3: Småhus, kWh/m2 BRA | Q3: EIso vegg | R3: EIso tak | S3: EIiso gulv | T3: Vinduer | U3: Balansert ventilasjon | W3: Nattsenking | X3: Energieffektiv belysningsutstyr | Z3: Solceller | AA3: Solfanger | AB3: Varmepumpe, luft til luft | AC3: Varmepumpe, øvrige (f.eks. luft til vann, vann til vann, avtrekksvarmepumpe) | AF3: Tiltak 1 | AG3: Tiltak 2 | AH3: Tiltak 3 | AI3: Tiltak 4 | AJ3: Tiltak 5 OP | AK3: Tiltak 5 EL | AL3: Tiltak 6 | AM3: Tiltak 7 OP | AN3: Tiltak 7 EL | AO3: Tiltak 8 | AP3: Tiltak 9 | AQ3: Tiltak 10 | AR3: Tiltak 11
C4: Byggeår | D4: Startpunkt | E4: RO+Vent | F4: Varmtvann | G4: El | H4: Besparelse % | I4: SP kk | J4: RO+Vent kk | K4: Total etter | L4: El etter tiltak | M4: Varmtvann etter | N4: RO etter | O4: Romoppv etter T 1 - 6 | P4: Trekk samtidighet | Q4: Besp T1 | R4: Besp T2 | S4: Besp T3 | T4: Besp T4 | U4: Besp T5 OP | V4: Besp T5 EL | W4: Besp T6 | X4: Besp T7 OP | Y4: Besp T7 EL | Z4: Besp T8 EL | AA4: Besp T9 OP | AB4: Besp T10 OP | AC4: Besp T11 OP | AF4: =Beregninger!AF4 -> TRUE | AG4: =Beregninger!AG4 -> TRUE | AH4: =Beregninger!AH4 -> FALSE | AI4: =Beregninger!AI4 -> FALSE | AJ4: =Beregninger!AJ4 -> FALSE | AK4: =Beregninger!AK4 -> FALSE | AL4: =Beregninger!AL4 -> FALSE | AM4: =Beregninger!AM4 -> FALSE | AN4: =Beregninger!AN4 -> FALSE | AO4: =Beregninger!AO4 -> FALSE | AP4: =Beregninger!AP4 -> FALSE | AQ4: =Beregninger!AQ4 -> FALSE | AR4: =Beregninger!AR4 -> FALSE | AT4: Eldre | AU4: 1 | AV4: 0 | AW4: 1950 | AX4: =IF(AND(Verktøy!$C$13>=AV4,Verktøy!$C$13<=AW4),AU4,"") -> 1
B5: Eldre | C5: < 1950 | D5: =Input!F15 -> 339.6 | E5: =Input!G15 -> 279.5 | F5: =Input!H15 -> 29.8 | G5: =D5-E5-F5 -> 30.3 | H5: =100-(K5*100/I5) -> 45.26648999 | I5: =D5-E5+J5 -> 339.6 | J5: =E5*('Energimerke D'!$D$2/Input!$C$254) -> 279.5 | K5: =L5+M5+N5 -> 185.875 | L5: =G5-V5-Y5-Z5 -> 30.3 | M5: =IF(F5<0,0,F5) -> 29.8 | N5: =O5-X5-AA5-AB5-AC5 -> 125.775 | O5: =IF(J5-SUM(Q5:U5)-W5+P5<0,0,J5-SUM(Q5:U5)-W5+P5) -> 125.775 | P5: =AB26 -> 0 | Q5: =IF($AF$4=TRUE,J5*(AF5/100)*(Verktøy!$G$6/100),0) -> 111.8 | R5: =IF($AG$4=TRUE,J5*(AG5/100)*(Verktøy!$G$11/100),0) -> 41.925 | S5: =IF($AH$4=TRUE,J$5*(AH5/100)*(Verktøy!$G$15/100),0) -> 0 | T5: =IF($AI$4=TRUE,J5*(AI5/100)*(Verktøy!$G$19/100),0) -> 0 | U5: =IF($AJ$4=TRUE,J5*AJ5/100,0) -> 0 | V5: =IF($AK$4=TRUE,G5*AK5/100,0) -> 0 | W5: =IF($AL$4=TRUE,(J5-SUM(Q5:U5))*AL5/100*(Verktøy!$G$28/100),0) -> 0 | X5: =IF($AM$4=TRUE,IF(G5*AM5/100<-Y5,-Y5,G5*AM5/100)*(Verktøy!$G$33/100),0) -> 0 | Y5: =IF($AN$4=TRUE,G5*AN5/100*(Verktøy!$G$33/100),0) -> 0 | Z5: =IF($AO$4=TRUE,Verktøy!$G$39/Verktøy!$C$15,0) -> 0 | AA5: =IF($AP$4=TRUE,Verktøy!$G$43/Verktøy!$C$15,0) -> 0 | AB5: =IF($AQ$4=TRUE,O5*0.3*0.8*(1-(1/2.5)),0) -> 0 | AC5: =IF($AR$4=TRUE,Verktøy!$G$51/Verktøy!$C$15*Input!$C$254/Beregninger!$D$2,0) -> 0 | AE5: Eldre | AF5: 40 | AG5: 15 | AH5: 16 | AI5: 20 | AJ5: 2 | AK5: -5 | AL5: 0 | AM5: 0 | AN5: 0 | AT5: TEK49 | AU5: 2 | AV5: =AW4+1 -> 1951 | AW5: 1970 | AX5: =IF(AND(Verktøy!$C$13>=AV5,Verktøy!$C$13<=AW5),AU5,"") -> 
B6: TEK49 | C6: 1951-1970 | D6: =Input!F16 -> 233.2 | E6: =Input!G16 -> 173.2 | F6: =Input!H16 -> 29.8 | G6: =D6-E6-F6 -> 30.2 | H6: =100-(K6*100/I6) -> 30.45111492 | I6: =D6-E6+J6 -> 233.2 | J6: =E6*('Energimerke D'!$D$2/Input!$C$254) -> 173.2 | K6: =L6+M6+N6 -> 162.188 | L6: 30.2 | M6: =IF(F6<0,0,F6) -> 29.8 | N6: 102.188 | O6: =IF(J6-SUM(Q6:U6)-W6+P6<0,0,J6-SUM(Q6:U6)-W6+P6) -> 102.188 | P6: 0 | Q6: =IF($AF$4=TRUE,J6*(AF6/100)*(Verktøy!$G$6/100),0) -> 57.156 | R6: =IF($AG$4=TRUE,J6*(AG6/100)*(Verktøy!$G$11/100),0) -> 13.856 | S6: =IF($AH$4=TRUE,J$6*(AH6/100)*(Verktøy!$G$15/100),0) -> 0 | T6: =IF($AI$4=TRUE,J6*(AI6/100)*(Verktøy!$G$19/100),0) -> 0 | U6: 0 | V6: 0 | W6: =IF($AL$4=TRUE,(J6-SUM(Q6:U6))*AL6/100*(Verktøy!$G$28/100),0) -> 0 | X6: =IF($AM$4=TRUE,IF(G6*AM6/100<-Y6,-Y6,G6*AM6/100)*(Verktøy!$G$33/100),0) -> 0 | Y6: =IF($AN$4=TRUE,G6*AN6/100*(Verktøy!$G$33/100),0) -> 0 | Z6: =IF($AO$4=TRUE,Verktøy!$G$39/Verktøy!$C$15,0) -> 0 | AA6: =IF($AP$4=TRUE,Verktøy!$G$43/Verktøy!$C$15,0) -> 0 | AB6: 0 | AC6: =IF($AR$4=TRUE,Verktøy!$G$51/Verktøy!$C$15*Input!$C$254/Beregninger!$D$2,0) -> 0 | AE6: TEK49 | AF6: 33 | AG6: 8 | AH6: 6 | AI6: 33 | AJ6: 3 | AK6: -5 | AL6: 0 | AM6: 0 | AN6: 0 | AT6: TEK69 | AU6: 3 | AV6: =AW5+1 -> 1971 | AW6: 1988 | AX6: =IF(AND(Verktøy!$C$13>=AV6,Verktøy!$C$13<=AW6),AU6,"") -> 
B7: TEK69 | C7: 1971 - 1988 | D7: =Input!F17 -> 220 | E7: =Input!G17 -> 160 | F7: =Input!H17 -> 29.8 | G7: 30.2 | H7: =100-(K7*100/I7) -> 22.54545455 | I7: 220 | J7: =E7*('Energimerke D'!$D$2/Input!$C$254) -> 160 | K7: =L7+M7+N7 -> 170.4 | L7: 30.2 | M7: 29.8 | N7: 110.4 | O7: 110.4 | P7: 0 | Q7: =IF($AF$4=TRUE,J7*(AF7/100)*(Verktøy!$G$6/100),0) -> 38.4 | R7: =IF($AG$4=TRUE,J7*(AG7/100)*(Verktøy!$G$11/100),0) -> 11.2 | S7: =IF($AH$4=TRUE,J$7*(AH7/100)*(Verktøy!$G$15/100),0) -> 0 | T7: =IF($AI$4=TRUE,J7*(AI7/100)*(Verktøy!$G$19/100),0) -> 0 | U7: 0 | V7: 0 | W7: =IF($AL$4=TRUE,(J7-SUM(Q7:U7))*AL7/100*(Verktøy!$G$28/100),0) -> 0 | X7: =IF($AM$4=TRUE,IF(G7*AM7/100<-Y7,-Y7,G7*AM7/100)*(Verktøy!$G$33/100),0) -> 0 | Y7: =IF($AN$4=TRUE,G7*AN7/100*(Verktøy!$G$33/100),0) -> 0 | Z7: =IF($AO$4=TRUE,Verktøy!$G$39/Verktøy!$C$15,0) -> 0 | AA7: =IF($AP$4=TRUE,Verktøy!$G$43/Verktøy!$C$15,0) -> 0 | AB7: 0 | AC7: =IF($AR$4=TRUE,Verktøy!$G$51/Verktøy!$C$15*Input!$C$254/Beregninger!$D$2,0) -> 0 | AE7: TEK69 | AF7: 24 | AG7: 7 | AH7: 7 | AI7: 33 | AJ7: 3 | AK7: -6 | AL7: 0 | AM7: 0 | AN7: 0 | AT7: TEK87 | AU7: 4 | AV7: 1989 | AW7: 1998 | AX7: =IF(AND(Verktøy!$C$13>=AV7,Verktøy!$C$13<=AW7),AU7,"") -> 
B8: TEK87 | C8: 1989 - 1998 | D8: =Input!F18 -> 189.3 | E8: =Input!G18 -> 125.2 | F8: =Input!H18 -> 29.8 | G8: 34.3 | H8: 11.90491284 | I8: 189.3 | J8: =E8*('Energimerke D'!$D$2/Input!$C$254) -> 125.2 | K8: 166.764 | L8: 34.3 | M8: 29.8 | N8: 102.664 | O8: 102.664 | P8: 0 | Q8: =IF($AF$4=TRUE,J8*(AF8/100)*(Verktøy!$G$6/100),0) -> 20.032 | R8: =IF($AG$4=TRUE,J8*(AG8/100)*(Verktøy!$G$11/100),0) -> 2.504 | S8: =IF($AH$4=TRUE,J$8*(AH8/100)*(Verktøy!$G$15/100),0) -> 0 | T8: =IF($AI$4=TRUE,J8*(AI8/100)*(Verktøy!$G$19/100),0) -> 0 | U8: 0 | V8: 0 | W8: =IF($AL$4=TRUE,(J8-SUM(Q8:U8))*AL8/100*(Verktøy!$G$28/100),0) -> 0 | X8: =IF($AM$4=TRUE,IF(G8*AM8/100<-Y8,-Y8,G8*AM8/100)*(Verktøy!$G$33/100),0) -> 0 | Y8: =IF($AN$4=TRUE,G8*AN8/100*(Verktøy!$G$33/100),0) -> 0 | Z8: =IF($AO$4=TRUE,Verktøy!$G$39/Verktøy!$C$15,0) -> 0 | AA8: =IF($AP$4=TRUE,Verktøy!$G$43/Verktøy!$C$15,0) -> 0 | AB8: 0 | AC8: =IF($AR$4=TRUE,Verktøy!$G$51/Verktøy!$C$15*Input!$C$254/Beregninger!$D$2,0) -> 0 | AE8: TEK87 | AF8: 16 | AG8: 2 | AH8: 6 | AI8: 28 | AJ8: 6 | AK8: 0 | AL8: 0 | AM8: 0 | AN8: 0 | AT8: TEK97 | AU8: 5 | AV8: 1999 | AW8: 2008 | AX8: =IF(AND(Verktøy!$C$13>=AV8,Verktøy!$C$13<=AW8),AU8,"") -> 
B9: TEK97 | C9: 1999 - 2008 | D9: =Input!F19 -> 153.1 | E9: =Input!G19 -> 89.1 | F9: =Input!H19 -> 29.8 | G9: 34.2 | H9: 6.983670803 | I9: 153.1 | J9: =E9*('Energimerke D'!$D$2/Input!$C$254) -> 89.1 | K9: 142.408 | L9: 34.2 | M9: 29.8 | N9: 78.408 | O9: 78.408 | P9: 0 | Q9: =IF($AF$4=TRUE,J9*(AF9/100)*(Verktøy!$G$6/100),0) -> 10.692 | R9: =IF($AG$4=TRUE,J9*(AG9/100)*(Verktøy!$G$11/100),0) -> 0 | S9: =IF($AH$4=TRUE,J$9*(AH9/100)*(Verktøy!$G$15/100),0) -> 0 | T9: =IF($AI$4=TRUE,J9*(AI9/100)*(Verktøy!$G$19/100),0) -> 0 | U9: 0 | V9: 0 | W9: =IF($AL$4=TRUE,(J9-SUM(Q9:U9))*AL9/100*(Verktøy!$G$28/100),0) -> 0 | X9: =IF($AM$4=TRUE,IF(G9*AM9/100<-Y9,-Y9,G9*AM9/100)*(Verktøy!$G$33/100),0) -> 0 | Y9: =IF($AN$4=TRUE,G9*AN9/100*(Verktøy!$G$33/100),0) -> 0 | Z9: =IF($AO$4=TRUE,Verktøy!$G$39/Verktøy!$C$15,0) -> 0 | AA9: =IF($AP$4=TRUE,Verktøy!$G$43/Verktøy!$C$15,0) -> 0 | AB9: 0 | AC9: =IF($AR$4=TRUE,Verktøy!$G$51/Verktøy!$C$15*Input!$C$254/Beregninger!$D$2,0) -> 0 | AE9: TEK97 | AF9: 12 | AG9: 0 | AH9: 3 | AI9: 19 | AJ9: 9 | AK9: 0 | AL9: 0 | AM9: 0 | AN9: 0 | AT9: TEK07 | AU9: 6 | AV9: 2009 | AW9: 2011 | AX9: =IF(Verktøy!$C$13>=AV9,AU9,"") -> 
B10: TEK07 | C10: 2009 - | D10: =Input!F20 -> 125.8 | E10: =Input!G20 -> 59.1 | F10: =Input!H20 -> 29.8 | G10: 36.9 | H10: 0 | I10: 125.8 | J10: =E10*('Energimerke D'!$D$2/Input!$C$254) -> 59.1 | K10: 125.8 | L10: 36.9 | M10: 29.8 | N10: 59.1 | O10: 59.1 | P10: 0 | Q10: =IF($AF$4=TRUE,J10*(AF10/100)*(Verktøy!$G$6/100),0) -> 0 | R10: =IF($AG$4=TRUE,J10*(AG10/100)*(Verktøy!$G$11/100),0) -> 0 | S10: =IF($AH$4=TRUE,J$10*(AH10/100)*(Verktøy!$G$15/100),0) -> 0 | T10: =IF($AI$4=TRUE,J10*(AI10/100)*(Verktøy!$G$19/100),0) -> 0 | U10: 0 | V10: 0 | W10: =IF($AL$4=TRUE,(J10-SUM(Q10:U10))*AL10/100*(Verktøy!$G$28/100),0) -> 0 | X10: =IF($AM$4=TRUE,IF(G10*AM10/100<-Y10,-Y10,G10*AM10/100)*(Verktøy!$G$33/100),0) -> 0 | Y10: =IF($AN$4=TRUE,G10*AN10/100*(Verktøy!$G$33/100),0) -> 0 | Z10: =IF($AO$4=TRUE,Verktøy!$G$39/Verktøy!$C$15,0) -> 0 | AA10: =IF($AP$4=TRUE,Verktøy!$G$43/Verktøy!$C$15,0) -> 0 | AB10: 0 | AC10: =IF($AR$4=TRUE,Verktøy!$G$51/Verktøy!$C$15*Input!$C$254/Beregninger!$D$2,0) -> 0 | AE10: TEK07 | AF10: 0 | AG10: 0 | AH10: 5 | AI10: 23 | AJ10: 6 | AK10: 7 | AL10: 0 | AM10: 0 | AN10: 0 | AX10: =SUM(AX4:AX9) -> 1
H12: =INDEX('Energimerke D'!H5:H10,'Energimerke D'!AX10) -> 45.26648999 | J12: kWh/m2, år | K12: =INDEX('Energimerke D'!K5:K10,'Energimerke D'!AX10) -> 185.875
B13: Boligblokk, kWh/m2 BRA | AE13: Boligblokk, besparelser i %
C14: Byggeår | D14: Startpunkt | E14: RO+Vent | F14: Varmtvann | G14: El | H14: Besparelse % | I14: SP kk | J14: RO+Vent kk | K14: Total etter | L14: El etter tiltak | M14: Varmtvann etter | N14: RO etter | O14: Romoppv etter T 1 - 6 | P14: Trekk samtidighet | Q14: Besp T1 | R14: Besp T2 | S14: Besp T3 | T14: Besp T4 | U14: Besp T5 OP | V14: Besp T5 EL | W14: Besp T6 | X14: Besp T7 OP | Y14: Besp T7 EL | Z14: Besp T8 EL | AA14: Besp T9 OP | AB14: Besp T10 OP | AC14: Besp T11 OP | AF14: Tiltak 1 | AG14: Tiltak 2 | AH14: Tiltak 3 | AI14: Tiltak 4 | AJ14: Tiltak 5 OP | AK14: Tiltak 5 EL | AL14: Tiltak 6 | AM14: Tiltak 7 OP | AN14: Tiltak 7 EL | AO14: Tiltak 8 | AP14: Tiltak 9 | AQ14: Tiltak 10 | AR14: Tiltak 11
B15: Eldre | C15: < 1950 | D15: =Input!I15 -> 259.1 | E15: =Input!J15 -> 199.2 | F15: =Input!K15 -> 29.8 | G15: =D15-E15-F15 -> 30.1 | H15: =100-(K15*100/I15) -> 41.51601698 | I15: =D15-E15+J15 -> 259.1 | J15: =E15*('Energimerke D'!$D$2/Input!$C$254) -> 199.2 | K15: =L15+M15+N15 -> 151.532 | L15: =G15-V15-Y15-Z15 -> 30.1 | M15: =IF(F15<0,0,F15) -> 29.8 | N15: =O15-X15-AA15-AB15-AC15 -> 91.632 | O15: =IF(J15-SUM(Q15:U15)-W15+P15<0,0,J15-SUM(Q15:U15)-W15+P15) -> 91.632 | P15: =AB34 -> 0 | Q15: =IF($AF$4=TRUE,J15*(AF15/100)*(Verktøy!$G$6/100),0) -> 83.664 | R15: =IF($AG$4=TRUE,J15*(AG15/100)*(Verktøy!$G$11/100),0) -> 23.904 | S15: =IF($AH$4=TRUE,J$15*(AH15/100)*(Verktøy!$G$15/100),0) -> 0 | T15: =IF($AI$4=TRUE,J15*(AI16/100)*(Verktøy!$G$19/100),0) -> 0 | U15: =IF($AJ$4=TRUE,J15*AJ15/100,0) -> 0 | V15: =IF($AK$4=TRUE,G15*AK16/100,0) -> 0 | W15: =IF($AL$4=TRUE,(J15-SUM(Q15:U15))*AL16/100*(Verktøy!$G$28/100),0) -> 0 | X15: =IF($AM$4=TRUE,IF(G15*AM16/100<-Y15,-Y15,G15*AM16/100)*(Verktøy!$G$33/100),0) -> 0 | Y15: =IF($AN$4=TRUE,G15*AN15/100*(Verktøy!$G$33/100),0) -> 0 | Z15: =IF($AO$4=TRUE,Verktøy!$G$39/Verktøy!$C$15,0) -> 0 | AA15: =IF($AP$4=TRUE,Verktøy!$G$43/Verktøy!$C$15,0) -> 0 | AB15: =IF($AQ$4=TRUE,O15*0.3*0.8*(1-(1/2.5)),0) -> 0 | AC15: =IF($AR$4=TRUE,Verktøy!$G$51/Verktøy!$C$15*Input!$C$254/Beregninger!$D$2,0) -> 0 | AE15: Eldre | AF15: 42 | AG15: 12 | AH15: 12 | AI15: 20 | AJ15: 6 | AK15: -6 | AL15: 0 | AM15: 0 | AN15: 0
B16: TEK49 | C16: 1951-1970 | D16: =Input!I16 -> 212.3 | E16: =Input!J16 -> 152.6 | F16: =Input!K16 -> 29.8 | G16: =D16-E16-F16 -> 29.9 | H16: =100-(K16*100/I16) -> 33.06453132 | I16: =D16-E16+J16 -> 212.3 | J16: =E16*('Energimerke D'!$D$2/Input!$C$254) -> 152.6 | K16: =L16+M16+N16 -> 142.104 | L16: 29.9 | M16: =IF(F16<0,0,F16) -> 29.8 | N16: 82.404 | O16: =IF(J16-SUM(Q16:U16)-W16+P16<0,0,J16-SUM(Q16:U16)-W16+P16) -> 82.404 | P16: 0 | Q16: =IF($AF$4=TRUE,J16*(AF16/100)*(Verktøy!$G$6/100),0) -> 61.04 | R16: =IF($AG$4=TRUE,J16*(AG16/100)*(Verktøy!$G$11/100),0) -> 9.156 | S16: =IF($AH$4=TRUE,J$16*(AH16/100)*(Verktøy!$G$15/100),0) -> 0 | T16: =IF($AI$4=TRUE,J16*(AI17/100)*(Verktøy!$G$19/100),0) -> 0 | U16: 0 | V16: =IF($AK$4=TRUE,G16*AK17/100,0) -> 0 | W16: =IF($AL$4=TRUE,(J16-SUM(Q16:U16))*AL17/100*(Verktøy!$G$28/100),0) -> 0 | X16: =IF($AM$4=TRUE,IF(G16*AM17/100<-Y16,-Y16,G16*AM17/100)*(Verktøy!$G$33/100),0) -> 0 | Y16: =IF($AN$4=TRUE,G16*AN16/100*(Verktøy!$G$33/100),0) -> 0 | Z16: =IF($AO$4=TRUE,Verktøy!$G$39/Verktøy!$C$15,0) -> 0 | AA16: =IF($AP$4=TRUE,Verktøy!$G$43/Verktøy!$C$15,0) -> 0 | AB16: 0 | AC16: =IF($AR$4=TRUE,Verktøy!$G$51/Verktøy!$C$15*Input!$C$254/Beregninger!$D$2,0) -> 0 | AE16: TEK49 | AF16: 40 | AG16: 6 | AH16: 6 | AI16: 25 | AJ16: 8 | AK16: -6 | AL16: 0 | AM16: 0 | AN16: 0
B17: TEK69 | C17: 1971 - 1988 | D17: =Input!I17 -> 185.2 | E17: =Input!J17 -> 120.2 | F17: =Input!K17 -> 29.8 | G17: 35.2 | H17: =100-(K17*100/I17) -> 15.57667387 | I17: 185.2 | J17: =E17*('Energimerke D'!$D$2/Input!$C$254) -> 120.2 | K17: =L17+M17+N17 -> 156.352 | L17: 35.2 | M17: 29.8 | N17: 91.352 | O17: 91.352 | P17: 0 | Q17: =IF($AF$4=TRUE,J17*(AF17/100)*(Verktøy!$G$6/100),0) -> 20.434 | R17: =IF($AG$4=TRUE,J17*(AG17/100)*(Verktøy!$G$11/100),0) -> 8.414 | S17: =IF($AH$4=TRUE,J$17*(AH17/100)*(Verktøy!$G$15/100),0) -> 0 | T17: =IF($AI$4=TRUE,J17*(AI18/100)*(Verktøy!$G$19/100),0) -> 0 | U17: 0 | V17: =IF($AK$4=TRUE,G17*AK18/100,0) -> 0 | W17: =IF($AL$4=TRUE,(J17-SUM(Q17:U17))*AL18/100*(Verktøy!$G$28/100),0) -> 0 | X17: =IF($AM$4=TRUE,IF(G17*AM18/100<-Y17,-Y17,G17*AM18/100)*(Verktøy!$G$33/100),0) -> 0 | Y17: =IF($AN$4=TRUE,G17*AN17/100*(Verktøy!$G$33/100),0) -> 0 | Z17: =IF($AO$4=TRUE,Verktøy!$G$39/Verktøy!$C$15,0) -> 0 | AA17: =IF($AP$4=TRUE,Verktøy!$G$43/Verktøy!$C$15,0) -> 0 | AB17: 0 | AC17: =IF($AR$4=TRUE,Verktøy!$G$51/Verktøy!$C$15*Input!$C$254/Beregninger!$D$2,0) -> 0 | AE17: TEK69 | AF17: 17 | AG17: 7 | AH17: 6 | AI17: 31 | AJ17: 16 | AK17: 0 | AL17: 0 | AM17: 0 | AN17: 0
B18: TEK87 | C18: 1989 - 1998 | D18: =Input!I18 -> 161 | E18: =Input!J18 -> 96.2 | F18: =Input!K18 -> 29.8 | G18: 35 | H18: =100-(K18*100/I18) -> 8.365217391 | I18: 161 | J18: =E18*('Energimerke D'!$D$2/Input!$C$254) -> 96.2 | K18: 147.532 | L18: 35 | M18: 29.8 | N18: 82.732 | O18: 82.732 | P18: 0 | Q18: =IF($AF$4=TRUE,J18*(AF18/100)*(Verktøy!$G$6/100),0) -> 11.544 | R18: =IF($AG$4=TRUE,J18*(AG18/100)*(Verktøy!$G$11/100),0) -> 1.924 | S18: =IF($AH$4=TRUE,J$18*(AH18/100)*(Verktøy!$G$15/100),0) -> 0 | T18: =IF($AI$4=TRUE,J18*(AI19/100)*(Verktøy!$G$19/100),0) -> 0 | U18: 0 | V18: =IF($AK$4=TRUE,G18*AK19/100,0) -> 0 | W18: =IF($AL$4=TRUE,(J18-SUM(Q18:U18))*AL19/100*(Verktøy!$G$28/100),0) -> 0 | X18: =IF($AM$4=TRUE,IF(G18*AM19/100<-Y18,-Y18,G18*AM19/100)*(Verktøy!$G$33/100),0) -> 0 | Y18: =IF($AN$4=TRUE,G18*AN18/100*(Verktøy!$G$33/100),0) -> 0 | Z18: =IF($AO$4=TRUE,Verktøy!$G$39/Verktøy!$C$15,0) -> 0 | AA18: =IF($AP$4=TRUE,Verktøy!$G$43/Verktøy!$C$15,0) -> 0 | AB18: 0 | AC18: =IF($AR$4=TRUE,Verktøy!$G$51/Verktøy!$C$15*Input!$C$254/Beregninger!$D$2,0) -> 0 | AE18: TEK87 | AF18: 12 | AG18: 2 | AH18: 3 | AI18: 25 | AJ18: 22 | AK18: 1 | AL18: 0 | AM18: 0 | AN18: 0
B19: TEK97 | C19: 1999 - 2008 | D19: =Input!I19 -> 138.4 | E19: =Input!J19 -> 73.7 | F19: =Input!K19 -> 29.8 | G19: 34.9 | H19: 9.052745665 | I19: 138.4 | J19: =E19*('Energimerke D'!$D$2/Input!$C$254) -> 73.7 | K19: 125.871 | L19: 34.9 | M19: 29.8 | N19: 61.171 | O19: 61.171 | P19: 0 | Q19: =IF($AF$4=TRUE,J19*(AF19/100)*(Verktøy!$G$6/100),0) -> 12.529 | R19: =IF($AG$4=TRUE,J19*(AG19/100)*(Verktøy!$G$11/100),0) -> 0 | S19: =IF($AH$4=TRUE,J$19*(AH19/100)*(Verktøy!$G$15/100),0) -> 0 | T19: =IF($AI$4=TRUE,J19*(AI20/100)*(Verktøy!$G$19/100),0) -> 0 | U19: 0 | V19: =IF($AK$4=TRUE,G19*AK20/100,0) -> 0 | W19: =IF($AL$4=TRUE,(J19-SUM(Q19:U19))*AL20/100*(Verktøy!$G$28/100),0) -> 0 | X19: =IF($AM$4=TRUE,IF(G19*AM20/100<-Y19,-Y19,G19*AM20/100)*(Verktøy!$G$33/100),0) -> 0 | Y19: =IF($AN$4=TRUE,G19*AN19/100*(Verktøy!$G$33/100),0) -> 0 | Z19: =IF($AO$4=TRUE,Verktøy!$G$39/Verktøy!$C$15,0) -> 0 | AA19: =IF($AP$4=TRUE,Verktøy!$G$43/Verktøy!$C$15,0) -> 0 | AB19: 0 | AC19: =IF($AR$4=TRUE,Verktøy!$G$51/Verktøy!$C$15*Input!$C$254/Beregninger!$D$2,0) -> 0 | AE19: TEK97 | AF19: 17 | AG19: 0 | AH19: 2 | AI19: 12 | AJ19: 27 | AK19: 0 | AL19: 0 | AM19: 0 | AN19: 0
B20: TEK07 | C20: 2009 - | D20: =Input!I20 -> 110.1 | E20: =Input!J20 -> 41.9 | F20: =Input!K20 -> 29.8 | G20: 38.4 | H20: =100-(K20*100/I20) -> 0 | I20: 110.1 | J20: =E20*('Energimerke D'!$D$2/Input!$C$254) -> 41.9 | K20: 110.1 | L20: 38.4 | M20: 29.8 | N20: 41.9 | O20: 41.9 | P20: 0 | Q20: =IF($AF$4=TRUE,J20*(AF20/100)*(Verktøy!$G$6/100),0) -> 0 | R20: =IF($AG$4=TRUE,J20*(AG20/100)*(Verktøy!$G$11/100),0) -> 0 | S20: =IF($AH$4=TRUE,J$20*(AH20/100)*(Verktøy!$G$15/100),0) -> 0 | T20: =IF($AI$4=TRUE,J20*(AK21/100)*(Verktøy!$G$19/100),0) -> 0 | U20: 0 | V20: =IF($AK$4=TRUE,G20*AM21/100,0) -> 0 | W20: =IF($AL$4=TRUE,(J20-SUM(Q20:U20))*AN21/100*(Verktøy!$G$28/100),0) -> 0 | X20: =IF($AM$4=TRUE,IF(G20*AO21/100<-Y20,-Y20,G20*AO21/100)*(Verktøy!$G$33/100),0) -> 0 | Y20: =IF($AN$4=TRUE,G20*AN20/100*(Verktøy!$G$33/100),0) -> 0 | Z20: =IF($AO$4=TRUE,Verktøy!$G$39/Verktøy!$C$15,0) -> 0 | AA20: =IF($AP$4=TRUE,Verktøy!$G$43/Verktøy!$C$15,0) -> 0 | AB20: 0 | AC20: =IF($AR$4=TRUE,Verktøy!$G$51/Verktøy!$C$15*Input!$C$254/Beregninger!$D$2,0) -> 0 | AE20: TEK07 | AF20: 0 | AG20: 0 | AH20: 4 | AI20: 20 | AJ20: 11 | AK20: 9 | AL20: 0 | AM20: 0 | AN20: 0
H22: =INDEX(H15:H20,AX10) -> 41.51601698 | J22: kWh/m2, år | K22: =INDEX('Energimerke D'!K15:K20,'Energimerke D'!AX10) -> 151.532
O23: Mellomregning av reduksjon i besparelse ved gjennomføring av flere tiltak samtidig
B24: Nedre grense energimerke D småhus | F24: =175+4100/Verktøy!C15 ->  | G24: =IF(K12<=F24,"Ja","Nei") ->  | P24: Tiltakskombinasjon | Q24: 1+4 | R24: 1+3+4 | S24: 1+2+4 | T24: 1+6 | U24: 2+6 | V24: 3+6 | W24: 4+6 | X24: 1+4+6 | Y24: 1+2+4+6 | Z24: 1+3+4+6 | AA24: 1+2+3+4+6 | AB24: AKTUELL
B25: Nedre grense energimerke D boligblokk | F25: =135+2200/Verktøy!C15 ->  | G25: =IF(K22<=F25,"Ja","Nei") ->  | O25: Småhus | P25: Byggeår | Q25: 3.5 | R25: 2.7 | S25: 0.9 | T25: 1.9 | U25: 0.6 | V25: 0.4 | W25: 1.1 | X25: 6.1 | Y25: 5.4 | Z25: 5.3 | AA25: 4.9 | AG25: 1) I første fanen hukes det av for de forskjellige tiltakene. Er det huket av for et tiltak vil verdiene i AF4:AR4 bytte til TRUE som er en av faktorene for å hente ut riktig besparelse.
O26: Eldre | P26: < 1950 | Q26: =IF(AND($AF$4=TRUE,$AI$4=TRUE,$AG$4=FALSE,$AH$4=FALSE),(Q5+T5)*($Q$25/100),0) -> 0 | R26: =IF(AND($AF$4=TRUE,$AG$4=FALSE,$AH$4=TRUE,$AI$4=TRUE),(Q5+T5+S5)*($R$25/100),0) -> 0 | S26: =IF(AND($AF$4=TRUE,$AG$4=TRUE,$AH$4=FALSE,$AI$4=TRUE),(Q5+T5+R5)*($S$25/100),0) -> 0 | T26: 0 | U26: 0 | V26: 0 | W26: 0 | X26: 0 | Y26: 0 | Z26: 0 | AA26: 0 | AB26: =SUM(Q26:AA26) -> 0 | AG26: 2) Formlene i Q5:AC20 sjekker om det er huket av for tiltaket gjennom TRUE/FALSE i rekke 4 og henter riktig verdi ut av tabellen.
O27: TEK49 | P27: 1951-1970 | Q27: =IF(AND($AF$4=TRUE,$AI$4=TRUE,$AG$4=FALSE,$AH$4=FALSE),(Q6+T6)*($Q$25/100),0) -> 0 | R27: =IF(AND($AF$4=TRUE,$AG$4=FALSE,$AH$4=TRUE,$AI$4=TRUE),(Q6+T6+S6)*($R$25/100),0) -> 0 | S27: =IF(AND($AF$4=TRUE,$AG$4=TRUE,$AH$4=FALSE,$AI$4=TRUE),(Q6+T6+R6)*($S$25/100),0) -> 0 | T27: 0 | U27: 0 | V27: 0 | W27: 0 | X27: 0 | Y27: 0 | Z27: 0 | AA27: 0 | AB27: 0 | AG27: 3) Står det FALSE i tiltaket er blir verdien automatisk satt til 0.
O28: TEK69 | P28: 1971 - 1988 | Q28: 0 | R28: 0 | S28: 0 | T28: 0 | U28: 0 | V28: 0 | W28: 0 | X28: 0 | Y28: 0 | Z28: 0 | AA28: 0 | AB28: 0 | AG28: 4) I første fanen henter feltet som angir besparelsen summen fra H12 eller H22, avhengig av om det er valgt småhus eller boligblokk.
B29: 1) Startpunkt, RO+Vent og Varmtvann oppdatert | O29: TEK87 | P29: 1989 - 1998 | Q29: 0 | R29: 0 | S29: 0 | T29: 0 | U29: 0 | V29: 0 | W29: 0 | X29: 0 | Y29: 0 | Z29: 0 | AA29: 0 | AB29: 0
B30: 2) Klimakorrigering er neglisjert ved å sette graddagstall for Osloklima fast i celle D2. Kontrolleres ved å se på f.eks. D5 og I5. | O30: TEK97 | P30: 1999 - 2008 | Q30: 0 | R30: 0 | S30: 0 | T30: 0 | U30: 0 | V30: 0 | W30: 0 | X30: 0 | Y30: 0 | Z30: 0 | AA30: 0 | AB30: 0
B31: 3) Besparelse for tiltak 6 og 7 er neglisjert ved å sette 0 i besparelse i AL5 til AN20 (merket med gult). | O31: TEK07 | P31: 2009 - | Q31: =IF(AND($AF$4=TRUE,$AI$4=TRUE,$AG$4=FALSE,$AH$4=FALSE),(Q10+T10)*($Q$25/100),0) -> 0 | R31: =IF(AND($AF$4=TRUE,$AG$4=FALSE,$AH$4=TRUE,$AI$4=TRUE),(Q10+T10+S10)*($R$25/100),0) -> 0 | S31: =IF(AND($AF$4=TRUE,$AG$4=TRUE,$AH$4=FALSE,$AI$4=TRUE),(Q10+T10+R10)*($S$25/100),0) -> 0 | T31: 0 | U31: 0 | V31: 0 | W31: 0 | X31: 0 | Y31: 0 | Z31: 0 | AA31: 0 | AB31: 0
B32: 4) Klimakorriger for T11 er lagt inn i cellene AC5 til AC20
O33: Boligblokk | P33: Byggeår | Q33: 0.7 | R33: 0.1 | S33: 0 | T33: 1.4 | U33: 0.4 | V33: 0.3 | W33: 1.3 | X33: 3.3 | Y33: 2.7 | Z33: 3 | AA33: 2.3
B34: SK: 29.01.21, TIB | O34: Eldre | P34: < 1950 | Q34: =IF(AND($AF$4=TRUE,$AI$4=TRUE,$AG$4=FALSE,$AH$4=FALSE),(Q15+T15)*($Q$33/100),0) -> 0 | R34: =IF(AND($AF$4=TRUE,$AI$4=TRUE,$AH$4=TRUE,$AG$4=FALSE),(Q15+T15+S15)*($R$33/100),0) -> 0 | S34: =IF(AND($AF$4=TRUE,$AG$4=TRUE,$AH$4=FALSE,$AI$4=TRUE),(Q15+T15+R15)*($S$33/100),0) -> 0 | T34: 0 | U34: 0 | V34: 0 | W34: 0 | X34: 0 | Y34: 0 | Z34: 0 | AA34: 0 | AB34: =SUM(Q34:AA34) -> 0
B35: 1) Ok | O35: TEK49 | P35: 1951-1970 | Q35: =IF(AND($AF$4=TRUE,$AI$4=TRUE,$AG$4=FALSE,$AH$4=FALSE),(Q16+T16)*($Q$33/100),0) -> 0 | R35: =IF(AND($AF$4=TRUE,$AI$4=TRUE,$AH$4=TRUE,$AG$4=FALSE),(Q16+T16+S16)*($R$33/100),0) -> 0 | S35: =IF(AND($AF$4=TRUE,$AG$4=TRUE,$AH$4=FALSE,$AI$4=TRUE),(Q16+T16+R16)*($S$33/100),0) -> 0 | T35: 0 | U35: 0 | V35: 0 | W35: 0 | X35: 0 | Y35: 0 | Z35: 0 | AA35: 0 | AB35: =SUM(Q35:AA35) -> 0
B36: 2) Ok | O36: TEK69 | P36: 1971 - 1988 | Q36: =IF(AND($AF$4=TRUE,$AI$4=TRUE,$AG$4=FALSE,$AH$4=FALSE),(Q17+T17)*($Q$33/100),0) -> 0 | R36: 0 | S36: 0 | T36: 0 | U36: 0 | V36: 0 | W36: 0 | X36: 0 | Y36: 0 | Z36: 0 | AA36: 0 | AB36: 0
B37: 3) Ok | O37: TEK87 | P37: 1989 - 1998 | Q37: 0 | R37: =IF(AND($AF$4=TRUE,$AI$4=TRUE,$AH$4=TRUE,$AG$4=FALSE),(Q18+T18+S18)*($R$33/100),0) -> 0 | S37: 0 | T37: 0 | U37: 0 | V37: 0 | W37: 0 | X37: 0 | Y37: 0 | Z37: 0 | AA37: 0 | AB37: 0
B38: 4) Ok | O38: TEK97 | P38: 1999 - 2008 | Q38: 0 | R38: 0 | S38: 0 | T38: 0 | U38: 0 | V38: 0 | W38: 0 | X38: 0 | Y38: 0 | Z38: 0 | AA38: 0 | AB38: 0
O39: TEK07 | P39: 2009 - | Q39: 0 | R39: 0 | S39: 0 | T39: 0 | U39: 0 | V39: 0 | W39: 0 | X39: 0 | Y39: 0 | Z39: 0 | AA39: 0 | AB39: 0

Sheet Input (hidden)
B2: Kommune | C2: GDT 19 | E2: Startpunkter besparelse | M2: Rekkehus, enebolig, to- eller firemannsbolig
B3: Alstahaug | C3: 4009.6 | F3: Småhus | I3: Boligblokk | M3: Leilighet i boligblokk
B4: Alta | C4: 5406.4 | F4: Tot | G4: RO+Vent | H4: VV | I4: Tot | J4: RO+Vent | K4: VV
B5: Alvdal | C5: 5577.4 | E5: Eldre | F5: 387 | G5: 289.2 | H5: 29.8 | I5: 297.3 | J5: 199.7 | K5: 29.8
B6: Alver | C6: 3344.7 | E6: TEK49 | F6: 268 | G6: 170.5 | H6: 29.8 | I6: 245.1 | J6: 147.8 | K6: 29.8
B7: Andøy | C7: 4499.6 | E7: TEK69 | F7: 253.4 | G7: 155.8 | H7: 29.8 | I7: 214.7 | J7: 112.1 | K7: 29.8
B8: Aremark | C8: 3900 | E8: TEK87 | F8: 208 | G8: 139 | H8: 29.8 | I8: 176.2 | J8: 106.3 | K8: 29.8
B9: Arendal | C9: 3361.7 | E9: TEK97 | F9: 161.7 | G9: 92.8 | H9: 29.8 | I9: 146.1 | J9: 76.6 | K9: 29.8
B10: Asker | C10: 3808.733333 | E10: TEK07 | F10: 132.6 | G10: 61.1 | H10: 29.8 | I10: 115.8 | J10: 42.7 | K10: 29.8
B11: Askvoll | C11: 3327.1
B12: Askøy | C12: 3277.8 | E12: Startpunkter energimerke D
B13: Aukra | C13: 3446.8 | F13: Småhus | I13: Boligblokk
B14: Aure | C14: 3714.8 | F14: Tot | G14: RO+Vent | H14: VV | I14: Tot | J14: RO+Vent | K14: VV
B15: Aurland | C15: 3850.2 | E15: Eldre | F15: 339.6 | G15: 279.5 | H15: 29.8 | I15: 259.1 | J15: 199.2 | K15: 29.8
B16: Aurskog-Høland | C16: 4204.8 | E16: TEK49 | F16: 233.2 | G16: 173.2 | H16: 29.8 | I16: 212.3 | J16: 152.6 | K16: 29.8
B17: Austevoll | C17: 3180 | E17: TEK69 | F17: 220 | G17: 160 | H17: 29.8 | I17: 185.2 | J17: 120.2 | K17: 29.8
B18: Austrheim | C18: 3352.5 | E18: TEK87 | F18: 189.3 | G18: 125.2 | H18: 29.8 | I18: 161 | J18: 96.2 | K18: 29.8
B19: Averøy | C19: 3564.9 | E19: TEK97 | F19: 153.1 | G19: 89.1 | H19: 29.8 | I19: 138.4 | J19: 73.7 | K19: 29.8
B20: Balsfjord | C20: 5193.5 | E20: TEK07 | F20: 125.8 | G20: =49+10.1 -> 59.1 | H20: 29.8 | I20: 110.1 | J20: =29.7+12.2 -> 41.9 | K20: 29.8
B21: Bamble | C21: 3462.8
B22: Bardu | C22: 5316.7
B23: Beiarn | C23: 4452.7
B24: Bergen | C24: 3473.4
B25: Berlevåg | C25: 5316.3
B26: Bindal | C26: 4289.1
B27: Birkenes | C27: 3576.3
B28: Bjerkreim | C28: 3461.3
B29: Bjørnafjorden | C29: 3293.7
B30: Bodø | C30: 4232.6
B31: Bokn | C31: 3228.8
B32: Bremanger | C32: 3727.2
B33: Brønnøy | C33: 4021.8
B34: Bygland | C34: 3985.5
B35: Bykle | C35: 5410.8
B36: Bærum | C36: 3797.2
B37: Bø | C37: 4233.5
B38: Bømlo | C38: 3188.9
B39: Båtsfjord | C39: 5395.5
B40: Dovre | C40: 5243.9
B41: Drammen | C41: 3794.366667
B42: Drangedal | C42: 3928.4
B43: Dyrøy | C43: 4893.7
B44: Dønna | C44: 3908
B45: Eidfjord | C45: 3661.9
B46: Eidskog | C46: 4317
B47: Eidsvoll | C47: 4212
B48: Eigersund | C48: 3469.2
B49: Elverum | C49: 4601.6
B50: Enebakk | C50: 4115.7
B51: Engerdal | C51: 5660.9
B52: Etne | C52: 3341.7
B53: Etnedal | C53: 4814.1
B54: Evenes | C54: 4594.4
B55: Evje og Hornnes | C55: 3895.2
B56: Farsund | C56: 3320.7
B57: Fauske | C57: 4565.8
B58: Fedje | C58: 3251.4
B59: Fitjar | C59: 3345.8
B60: Fjaler | C60: 3589.4
B61: Fjord | C61: 3552.6
B62: Flakstad | C62: 4433.4
B63: Flatanger | C63: 3902.4
B64: Flekkefjord | C64: 3473.4
B65: Flesberg | C65: 4278.3
B66: Flå | C66: 4437.5
B67: Folldal | C67: 5748.7
B68: Fredrikstad | C68: 3427.9
B69: Frogn | C69: 3827.6
B70: Froland | C70: 3693.2
B71: Frosta | C71: 4089.4
B72: Frøya | C72: 3598
B73: Fyresdal | C73: 4304.8
B74: Færder | C74: 3486.1
B75: Gamvik | C75: 5245.5
B76: Gausdal | C76: 4528.1
B77: Gildeskål | C77: 4251.5
B78: Giske | C78: 3333.6
B79: Gjemnes | C79: 3579.3
B80: Gjerdrum | C80: 4158
B81: Gjerstad | C81: 3694.2
B82: Gjesdal | C82: 3449.5
B83: Gjøvik | C83: 4350.3
B84: Gloppen | C84: 3626.8
B85: Gol | C85: 4638.6
B86: Gran | C86: 4332.9
B87: Grane | C87: 4938.5
B88: Gratangen | C88: 5041
B89: Grimstad | C89: 3327.1
B90: Grong | C90: 4647.9
B91: Grue | C91: 4379.4
B92: Gulen | C92: 3430.4
B93: Hadsel | C93: 4263.9
B94: Halden | C94: 3374.7
B95: Hamar | C95: 4397.4
B96: Hamarøy | C96: 4622.85
B97: Hammerfest | C97: 4970.45
B98: Hareid | C98: 3384.4
B99: Harstad | C99: 4566.6
B100: Hasvik | C100: 4775
B101: Hattfjelldal | C101: 5341.5
B102: Haugesund | C102: 3171
B103: Heim | C103: 3906.433333
B104: Hemnes | C104: 4694.8
B105: Hemsedal | C105: 5265.4
B106: Herøy | C106: 3299.6
B107: Herøy | C107: 3854.2
B108: Hitra | C108: 3869.8
B109: Hjartdal | C109: 4172.4
B110: Hjelmeland | C110: 3339.5
B111: Hol | C111: 5056.3
B112: Hole | C112: 3978.3
B113: Holmestrand | C113: 3795.4
B114: Holtålen | C114: 5222.7
B115: Horten | C115: 3647.8
B116: Hurdal | C116: 4300.4
B117: Hustadvika | C117: 3492.05
B118: Hvaler | C118: 3286.3
B119: Hyllestad | C119: 3670.2
B120: Hægebostad | C120: 3766.4
B121: Høyanger | C121: 3989.5
B122: Høylandet | C122: 4529.4
B123: Hå | C123: 3268.9
B124: Ibestad | C124: 4782.6
B125: Inderøy | C125: 4053.4
B126: Indre Fosen | C126: 3891
B127: Indre Østfold | C127: 3991.84
B128: Iveland | C128: 4082.4
B129: Jevnaker | C129: 4135.7
B130: Karasjok | C130: 6528.4
B131: Karlsøy | C131: 4717.1
B132: Karmøy | C132: 3151.6
B133: Kautokeino | C133: 6637.5
B134: Kinn | C134: 3288.75
B135: Klepp | C135: 3250.1
B136: Kongsberg | C136: 4185.8
B137: Kongsvinger | C137: 4318.7
B138: Kragerø | C138: 3436.9
B139: Kristiansand | C139: 3353.133333
B140: Kristiansund | C140: 3534.9
B141: Krødsherad | C141: 4306.6
B142: Kvam | C142: 3471.6
B143: Kvinesdal | C143: 3327.9
B144: Kvinnherad | C144: 3454
B145: Kviteseid | C145: 4036.7
B146: Kvitsøy | C146: 3099.7
B147: Kvæfjord | C147: 4975.9
B148: Kvænangen | C148: 5003.1
B149: Kåfjord | C149: 5035.9
B150: Larvik | C150: 3508.9
B151: Lavangen | C151: 4914.5
B152: Lebesby | C152: 5523.3
B153: Leirfjord | C153: 4268.7
B154: Leka | C154: 4059.9
B155: Lesja | C155: 5288.5
B156: Levanger | C156: 4046.7
B157: Lier | C157: 3852.9
B158: Lierne | C158: 5409.2
B159: Lillehammer | C159: 4648.9
B160: Lillesand | C160: 3357.9
B161: Lillestrøm | C161: 4047.266667
B162: Lindesnes | C162: 3304.3
B163: Lom | C163: 5047.6
B164: Loppa | C164: 4845.4
B165: Lund | C165: 3452.3
B166: Lunner | C166: 4411.9
B167: Lurøy | C167: 4007.9
B168: Luster | C168: 3877.5
B169: Lyngdal | C169: 3401.35
B170: Lyngen | C170: 5045.8
B171: Lærdal | C171: 3971.5
B172: Lødingen | C172: 4416.2
B173: Lørenskog | C173: 4119.8
B174: Løten | C174: 4558.8
B175: Malvik | C175: 4059.5
B176: Marker | C176: 4045
B177: Masfjorden | C177: 4123.9
B178: Melhus | C178: 4153.6
B179: Meløy | C179: 4354
B180: Meråker | C180: 4446.6
B181: Midtre Gauldal | C181: 4374.9
B182: Midt-Telemark | C182: 3973.8
B183: Modalen | C183: 3561.5
B184: Modum | C184: 4050.6
B185: Molde | C185: 3508.7
B186: Moskenes | C186: 4057.6
B187: Moss | C187: 3612.7
B188: Målselv | C188: 5143.6
B189: Måsøy | C189: 4955.7
B190: Namsos | C190: 4211.766667
B191: Namsskogan | C191: 5056.1
B192: Nannestad | C192: 4219.9
B193: Narvik | C193: 4722.5
B194: Nes | C194: 4153.1
B195: Nes | C195: 4531.9
B196: Nesna | C196: 4148.6
B197: Nesodden | C197: 3907.7
B198: Nesseby | C198: 5841.6
B199: Nissedal | C199: 4189.1
B200: Nittedal | C200: 4213.3
B201: Nome | C201: 3838.7
... 157 more rows
